2CCN - Level 2 Cost Centre Name,,9CCN - Level 9 Cost Centre Name,9CCC - Level 9 Cost Centre Code,9AN - Level 9 Account Name,9AC - Level 9 Account Code,Transaction Description,Date Paid,Transaction Reference,Analysed Amount,2AC - Level 2 Account Codes,Supplier Name,Supplier Code
Gloucester City Council,23UE,REDACTED,REDACTED,REDACTED,REDACTED,REDACTED,01/07/2015,REDACTED,195,NET,REDACTED,REDACTED
Gloucester City Council,23UE,Cemeteries,HC300,Operational Materials,5070,Spirit Level,01/07/2015,404316,24.88,NET,Spaldings,48759Y
Gloucester City Council,23UE,City Museum And Art Gallery,LM200,Publications,5060,Various Items,01/07/2015,401819,533.41,NET,British Fossils,53280R
Gloucester City Council,23UE,REDACTED,REDACTED,REDACTED,REDACTED,REDACTED,01/07/2015,REDACTED,675,NET,REDACTED,REDACTED
Gloucester City Council,23UE,Contact Centre,RB300,Postages,5400,Post 29/05 - 11/06 2015,01/07/2015,404208,1945.44,NET,Royal Mail S.Wales & South West,35830S
Gloucester City Council,23UE,Grants To Voluntary Sector,FG100,Members Allocation Fund,7100F,Grant,01/07/2015,404482,250,NET,Emmaus Gloucestershire,12321RV
Gloucester City Council,23UE,Grants To Voluntary Sector,FG100,Members Allocation Fund,7100F,Grant,01/07/2015,404480,180,NET,Podsmead Big Local,14952X
Gloucester City Council,23UE,REDACTED,REDACTED,REDACTED,REDACTED,REDACTED,01/07/2015,REDACTED,480,NET,REDACTED,REDACTED
Gloucester City Council,23UE,REDACTED,REDACTED,REDACTED,REDACTED,REDACTED,01/07/2015,REDACTED,520,NET,REDACTED,REDACTED
Gloucester City Council,23UE,Off Street Car Parks,PP110,General Repair/Maint Buildings,3000,Hare Lane & Alma Place markings,01/07/2015,403951,600,NET,Roadmark Ltd,37743T
Gloucester City Council,23UE,Vehicles,RS140,Basic Pay - Cleaners,2401,Fuel,01/07/2015,404405,206.74,NET,Allstar Business Solutions Ltd (Arval),06594A
Gloucester City Council,23UE,REDACTED,REDACTED,REDACTED,REDACTED,REDACTED,02/07/2015,REDACTED,195,NET,REDACTED,REDACTED
Gloucester City Council,23UE,Business Transformation & Tech,RT700,Computer Software Maintenance,5427,Renewal Subscription,02/07/2015,404378,1895,NET,Axial Systems Ltd,56995J
Gloucester City Council,23UE,Council Streetcare Team,HI101,Maint Of Grounds - General,3030,Longford Playing Field,02/07/2015,404324,244,NET,Greenfields Garden Services Ltd,48130G
Gloucester City Council,23UE,Countryside Unit,LP201,Cleaning / Domestic Equipment,5011,Various Items,02/07/2015,404336,23.98,NET,Greenham (Bristol) Ltd,59082N
Gloucester City Council,23UE,Countryside Unit,LP201,Clothing,5200,Various Items,02/07/2015,404336,5.98,NET,Greenham (Bristol) Ltd,59082N
Gloucester City Council,23UE,Countryside Unit,LP201,General Repair/Maint Buildings,3000,Various Items,02/07/2015,404336,30.37,NET,Greenham (Bristol) Ltd,59082N
Gloucester City Council,23UE,Countryside Unit,LP201,Maint Of Grounds - General,3030,Various Items,02/07/2015,404336,39.99,NET,Greenham (Bristol) Ltd,59082N
Gloucester City Council,23UE,Countryside Unit,LP201,Safety Equipment,5013,Various Items,02/07/2015,404336,52.47,NET,Greenham (Bristol) Ltd,59082N
Gloucester City Council,23UE,Crematorium,HC200,Fees For Services Received,5350,Crem Fees June 2015,02/07/2015,404600,2039.84,NET,Dr C M Stretton,00306P
Gloucester City Council,23UE,Crematorium,HC200,Fees For Services Received,5350,Crem Fees June 2015,02/07/2015,404601,410.64,NET,Dr D Martin,00890P
Gloucester City Council,23UE,Crematorium,HC200,Fees For Services Received,5350,Crem Fees June 2015,02/07/2015,404602,386.16,NET,Dr R W Bell,01571P
Gloucester City Council,23UE,Disabled Facilities Grants,CY013,Disabled Facility Grants,74,Disabled facilities grant,02/07/2015,404599,1250,CAP,Tpg Disableaids,51324R
Gloucester City Council,23UE,Docks Complex - Services,RB100,Cleaning Materials,3600,Cleaning Materials,02/07/2015,404123,108.06,NET,Core Hygiene Ltd,03885P
Gloucester City Council,23UE,Docks Complex - Services,RB100,Operational Equipment <5000,5012,Lease Rental,02/07/2015,402629,162.57,NET,Siemens Financial Services Ltd,08349H
Gloucester City Council,23UE,Docks Complex - Services,RB100,Recycling,3631,Recycling,02/07/2015,403310,73.2,NET,Printwaste Recycling,57114W
Gloucester City Council,23UE,Docks Complex - Services,RB100,Service Charges,3020,Contract Jul - Oct 2015,02/07/2015,404169,48.75,NET,Wessex Products (Leasing) Ltd,03684C
Gloucester City Council,23UE,Eastgate Rooftop Emerg Works,RY159,Contract Payments,20,phase 3 retention,02/07/2015,404057,1195.61,CAP,Rsw Roofing (South West) Ltd,15324A
Gloucester City Council,23UE,General Works Fund,RY203,Capital Lifts,24,Works 18/06/2015,02/07/2015,404377,9826.28,CAP,Pickerings Europe Ltd,58816U
Gloucester City Council,23UE,REDACTED,REDACTED,REDACTED,REDACTED,REDACTED,02/07/2015,REDACTED,268.75,NET,REDACTED,REDACTED
Gloucester City Council,23UE,REDACTED,REDACTED,REDACTED,REDACTED,REDACTED,02/07/2015,REDACTED,412.5,NET,REDACTED,REDACTED
Gloucester City Council,23UE,REDACTED,REDACTED,REDACTED,REDACTED,REDACTED,02/07/2015,REDACTED,250,NET,REDACTED,REDACTED
Gloucester City Council,23UE,REDACTED,REDACTED,REDACTED,REDACTED,REDACTED,02/07/2015,REDACTED,250,NET,REDACTED,REDACTED
Gloucester City Council,23UE,Guildhall Lettings,LA400,Subscriptions,5600,Annual Renewal,02/07/2015,404335,665,NET,Venue Directory.Com,13843N
Gloucester City Council,23UE,Investment Property,RB500,Lift Maintenance,3051,Works 14/04/2015,02/07/2015,404383,1262.08,NET,Pickerings Europe Ltd,58816U
Gloucester City Council,23UE,National Express,LT105,Materials For Sale,5080,Tickets June 2015,02/07/2015,404583,11699.8,NET,National Express Ltd,31455K
Gloucester City Council,23UE,National Express,LT105,Sale Of Goods And Services,9230,Tickets June 2015,02/07/2015,404583,-1126.39,NET,National Express Ltd,31455K
Gloucester City Council,23UE,REDACTED,REDACTED,REDACTED,REDACTED,REDACTED,02/07/2015,REDACTED,38,NET,REDACTED,REDACTED
Gloucester City Council,23UE,Retail Market - Landlord,HM300,Window Cleaning,3610,Monthly Window Clean,02/07/2015,404338,140,NET,Cornwall Cleaning Services,14050A
Gloucester City Council,23UE,The Arbor,HC501,Cleaning Materials,3600,Cleaning Materials,02/07/2015,404330,43.6,NET,Core Hygiene Ltd,03885P
Gloucester City Council,23UE,The Arbor,HC501,Cleaning Materials,3600,Cleaning Materials,02/07/2015,404332,36.93,NET,Core Hygiene Ltd,03885P
Gloucester City Council,23UE,Cemeteries,HC300,Major R And M - Vehicles,4010,Various Items,03/07/2015,404484,1081.52,NET,Garden Machinery Gloucester,55641K
Gloucester City Council,23UE,Cemeteries,HC300,Routine R And M - Vehicles,4011,Repairs,03/07/2015,404483,60,NET,Garden Machinery Gloucester,55641K
Gloucester City Council,23UE,Crematorium,HC200,Book Of Memory,5055,Lines Inscribed,03/07/2015,404485,149.66,NET,Hilton Cabinet Co Ltd,21910A
Gloucester City Council,23UE,Development Management,PT200,Advertising And Publicity,5702,Advertisement 18/06/2015,03/07/2015,404392,175.3,NET,Local World Ltd,08556P
Gloucester City Council,23UE,Docks Complex - Services,RB100,Catering Provisions -Food,5110,Food,03/07/2015,404415,24.07,NET,Total Produce Gloucester,12645E
Gloucester City Council,23UE,Docks Complex - Services,RB100,Catering Provisions -Food,5110,Food,03/07/2015,404634,0.45,NET,Total Produce Gloucester,12645E
Gloucester City Council,23UE,Docks Complex - Services,RB100,Maint Agreements - Buildings,3010,Manintenance 15/16,03/07/2015,404390,375,NET,Avon Alarms Ltd,02280T
Gloucester City Council,23UE,Economic Development,FP300,Other Minor Supplies Services,5590,Internal Legal Fees,03/07/2015,404491,500,NET,Marks & Spencer Plc,15770W
Gloucester City Council,23UE,Flooding And Drainage,HE306,Maint Of Grounds - General,3030,Gloucester Quay - Clear Vegetation,03/07/2015,404381,360,NET,Rdb Safety Boat Ltd,13507J
Gloucester City Council,23UE,Gl1 Emergency Works,RY160,Contract Payments,20,GL1 Leisure Centre,03/07/2015,393065,3645,CAP,Doncaster Maintenance Uk Ltd,14983K
Gloucester City Council,23UE,Guildhall Bar And Caf�,LA210,Catering Provisions -Food,5110,Food,03/07/2015,404592,174.44,NET,Woodward Foodservice,10714F
Gloucester City Council,23UE,Guildhall Bar And Caf�,LA210,Catering Provisions -Food,5110,Food,03/07/2015,404593,111.61,NET,Woodward Foodservice,10714F
Gloucester City Council,23UE,Guildhall Bar And Caf�,LA210,Catering Provisions -Food,5110,Milk,03/07/2015,404585,4.6,NET,Total Produce Gloucester,12645E
Gloucester City Council,23UE,Guildhall Bar And Caf�,LA210,Catering Provisions -Food,5110,Milk,03/07/2015,404586,4.6,NET,Total Produce Gloucester,12645E
Gloucester City Council,23UE,Guildhall Bar And Caf�,LA210,Catering Provisions -Food,5110,Milk,03/07/2015,404587,4.6,NET,Total Produce Gloucester,12645E
Gloucester City Council,23UE,Guildhall Bar And Caf�,LA210,Catering Provisions -Food,5110,Milk,03/07/2015,404588,4.6,NET,Total Produce Gloucester,12645E
Gloucester City Council,23UE,Guildhall Bar And Caf�,LA210,Catering Provisions -Food,5110,Milk,03/07/2015,404589,4.6,NET,Total Produce Gloucester,12645E
Gloucester City Council,23UE,Guildhall Bar And Caf�,LA210,Catering Provisions -Food,5110,Milk,03/07/2015,404590,4.6,NET,Total Produce Gloucester,12645E
Gloucester City Council,23UE,Guildhall Bar And Caf�,LA210,Catering Provisions -Food,5110,Milk,03/07/2015,404591,4.6,NET,Total Produce Gloucester,12645E
Gloucester City Council,23UE,Guildhall Bar And Caf�,LA210,Catering Provisions -Liquor,5111,Drinks,03/07/2015,404488,1129.39,NET,Cellar Supplies Cheltenham Ltd,01563L
Gloucester City Council,23UE,Guildhall Bar And Caf�,LA210,Catering Provisions -Liquor,5111,Gloucester Gold,03/07/2015,404487,152,NET,Gloucester Brewery,13373F
Gloucester City Council,23UE,Guildhall Bar And Caf�,LA210,Hire Of Equipment,5020,Cups,03/07/2015,404486,307.5,NET,Gerry Dance Disposables Ltd,54579Y
Gloucester City Council,23UE,REDACTED,REDACTED,REDACTED,REDACTED,REDACTED,03/07/2015,REDACTED,166.67,NET,REDACTED,REDACTED
Gloucester City Council,23UE,Internal Health & Safety,EH110,Other Minor Supplies Services,5590,Membership 2015,03/07/2015,404394,45,NET,Gloucestershire Safety Group,55377D
Gloucester City Council,23UE,REDACTED,REDACTED,REDACTED,REDACTED,REDACTED,03/07/2015,REDACTED,370,NET,REDACTED,REDACTED
Gloucester City Council,23UE,Pollution Control,HE300,Fees For Services Received,5350,Remove 4 Scooters,03/07/2015,404380,270,NET,Rdb Safety Boat Ltd,13507J
Gloucester City Council,23UE,Statutory Testing,RS310,General Repair/Maint Buildings,3000,Engineer 23/05/2015,03/07/2015,404395,328.64,NET,Adt Fire & Security Plc,54086D
Gloucester City Council,23UE,The Arbor,HC501,Catering Provisions -Food,5110,Food,03/07/2015,404233,3.72,NET,Total Produce Gloucester,12645E
Gloucester City Council,23UE,The Arbor,HC501,Catering Provisions -Food,5110,Food,03/07/2015,404244,25.06,NET,Total Produce Gloucester,12645E
Gloucester City Council,23UE,The Arbor,HC501,Catering Provisions -Food,5110,Food,03/07/2015,404245,23.11,NET,Total Produce Gloucester,12645E
Gloucester City Council,23UE,The Arbor,HC501,Catering Provisions -Food,5110,Food,03/07/2015,404246,4.98,NET,Total Produce Gloucester,12645E
Gloucester City Council,23UE,The Arbor,HC501,Catering Provisions -Food,5110,Food,03/07/2015,404247,50,NET,Total Produce Gloucester,12645E
Gloucester City Council,23UE,The Arbor,HC501,Catering Provisions -Food,5110,Food,03/07/2015,404248,11.66,NET,Total Produce Gloucester,12645E
Gloucester City Council,23UE,Tic Trading,LT110,Materials For Sale,5080,Various Items,03/07/2015,404489,591.48,NET,Norfolk China Ltd,12863S
Gloucester City Council,23UE,Client Revs & Bens Contract,RT240,Bailiffs Fees,5368,VAT due on fees,06/07/2015,404296,0,NET,Bristow & Sutor,05450M
Gloucester City Council,23UE,Client Revs & Bens Contract,RT240,Bailiffs Fees,5368,VAT due on fees collected,06/07/2015,404295,11.71,NET,Bristow & Sutor,05450M
Gloucester City Council,23UE,Countryside Unit,LP201,Tyres,4014,AGR Tube,06/07/2015,404310,20.4,NET,Ats Euromaster Ltd,06005E
Gloucester City Council,23UE,Docks Complex - Services,RB100,Service Charges,3020,Docks Service Charge Jul - Sep 2015,06/07/2015,404385,13623.75,NET,Gloucester Quays Management Ltd,13497K
Gloucester City Council,23UE,Gloucester Partnership,FP106,Other Minor Supplies Services,5590,ENGLAND ATHLETICS,06/07/2015,404517,155,NET,England Athletics,15020A
Gloucester City Council,23UE,Homelessness,CH120,Rents,3200,Management Fee Apr - Jun 2015,06/07/2015,404493,46250,NET,Gloucester City Homes,05244T
Gloucester City Council,23UE,Southgate Moorings,RB537,Service Charges,3020,Docks Service Charge Jul - Sep 2015,06/07/2015,404386,2000,NET,Gloucester Quays Management Ltd,13497K
Gloucester City Council,23UE,Asset Management,RS300,Basic Pay -Admin /Prof Staff,2601,Engineer Services May 2015,07/07/2015,404406,4813.05,NET,Ecostep Ltd,15511Z
Gloucester City Council,23UE,Community Safety Projects,FP500,Basic Pay - Temporary Staff,2751,temporary staff,07/07/2015,404576,425.3,NET,Travail Employment Ltd,49371W
Gloucester City Council,23UE,Community Safety Projects,FP500,Basic Pay - Temporary Staff,2751,temporary staff,07/07/2015,404580,536.55,NET,Travail Employment Ltd,49371W
Gloucester City Council,23UE,Disabled Facilities Grants,CY013,Disabled Facility Grants,74,Disabled facilities grant MDF5099,07/07/2015,404673,1465.54,CAP,Mears Home Improvement Ltd,00096G
Gloucester City Council,23UE,Docks Complex - Services,RB100,Lift Maintenance,3051,Engineer 10/04/2015,07/07/2015,401816,70.31,NET,Pickerings Europe Ltd,58816U
Gloucester City Council,23UE,Docks Complex - Services,RB100,Lift Maintenance,3051,Works 12/06/2015,07/07/2015,404577,601.18,NET,Pickerings Europe Ltd,58816U
Gloucester City Council,23UE,Docks Complex - Telephones,RB120,Mobile Phones,5409,Samsung Galaxy Ace,07/07/2015,404125,98,NET,Everything Everywhere Ltd (T-Mobile),02334V
Gloucester City Council,23UE,Employers Pension Contribs,ZR355,Pension Contribs Incl Backf,2901,June 2015 pension deficit,07/07/2015,404658,217666.66,NET,Gloucestershire County Council,10614L
Gloucester City Council,23UE,Financial Services,RT200,Advertising And Publicity,5702,Advertisement 18/06/2015,07/07/2015,404393,321.38,NET,Local World Ltd,08556P
Gloucester City Council,23UE,General Drainage Works,PY241,Contract Payments,20,Tewkesbury Road works,07/07/2015,404159,300,CAP,Greenfields Garden Services Ltd,48130G
Gloucester City Council,23UE,General Drainage Works,PY241,Contract Payments,20,St Peters School,07/07/2015,404312,950,CAP,Rj Contracting (Environmental) Ltd,07429H
Gloucester City Council,23UE,REDACTED,REDACTED,REDACTED,REDACTED,REDACTED,07/07/2015,REDACTED,600,NET,REDACTED,REDACTED
Gloucester City Council,23UE,REDACTED,REDACTED,REDACTED,REDACTED,REDACTED,07/07/2015,REDACTED,669.47,NET,REDACTED,REDACTED
Gloucester City Council,23UE,REDACTED,REDACTED,REDACTED,REDACTED,REDACTED,07/07/2015,REDACTED,21,NET,REDACTED,REDACTED
Gloucester City Council,23UE,Off Street Car Parks,PP110,General Repair/Maint Buildings,3000,Leisure Centre Sign,07/07/2015,404326,117,NET,Hanman Split Ltd,56889J
Gloucester City Council,23UE,Play Area Refurbishment,LY071,Contract Payments,20,Longford Lane Park,07/07/2015,404323,140,CAP,Greenfields Garden Services Ltd,48130G
Gloucester City Council,23UE,Registration Of Electors,RS400,Fees For Services Received,5350,Hire of Colwell Arts Centre,07/07/2015,404313,310,NET,Gloucestershire County Council,18650D
Gloucester City Council,23UE,REDACTED,REDACTED,REDACTED,REDACTED,REDACTED,07/07/2015,REDACTED,2254,CAP,REDACTED,REDACTED
Gloucester City Council,23UE,Allotments,HI104,Fees For Services Received,5350,5th June clearance works,08/07/2015,404563,150,NET,Tcv T/A The Conservation Volunteers,55897V
Gloucester City Council,23UE,REDACTED,REDACTED,REDACTED,REDACTED,REDACTED,08/07/2015,REDACTED,35,NET,REDACTED,REDACTED
Gloucester City Council,23UE,REDACTED,REDACTED,REDACTED,REDACTED,REDACTED,08/07/2015,REDACTED,40,NET,REDACTED,REDACTED
Gloucester City Council,23UE,Business Planning & Performanc,RL500,Fees For Services Received,5350,Staff Awards hire,08/07/2015,404557,384,NET,Unique Sound Systems,59571S
Gloucester City Council,23UE,REDACTED,REDACTED,REDACTED,REDACTED,REDACTED,08/07/2015,REDACTED,220,NET,REDACTED,REDACTED
Gloucester City Council,23UE,Cemeteries,HC300,Clothing,5200,Safety Boots,08/07/2015,404160,75.54,NET,Safpro Industrial Supply Co,39190W
Gloucester City Council,23UE,Cemeteries,HC300,Maint Of Grounds - General,3030,Fine Bark,08/07/2015,404317,1810.25,NET,Bhgs Ltd,00247K
Gloucester City Council,23UE,Cemeteries,HC300,Operational Materials,5070,Various Items,08/07/2015,404435,39.15,NET,Machine Mart,56123E
Gloucester City Council,23UE,Cems/Crems Admin,HC100,Office Equipment <5000,5010,bookcase,08/07/2015,404509,169.99,NET,Office Star Group Ltd,55874H
Gloucester City Council,23UE,Cems/Crems Admin,HC100,Office Equipment <5000,5010,Ink Cartridges,08/07/2015,404138,56.85,NET,Office Star Group Ltd,55874H
Gloucester City Council,23UE,Council Streetcare Team,HI101,Operational Equipment <5000,5012,padlocks,08/07/2015,404515,190,NET,London Tools Ltd,13538X
Gloucester City Council,23UE,Countryside Unit,LP201,Major R And M - Vehicles,4010,goods,08/07/2015,404566,134.17,NET,Loxston Groundcare,14309F
Gloucester City Council,23UE,Crematorium,HC200,Cleaning Materials,3600,towel hire,08/07/2015,404506,77.56,NET,Initial Washroom Solutions,24219P
Gloucester City Council,23UE,Crematorium,HC200,Equipment For Sale,5050,Bench & Engraving,08/07/2015,404379,457.49,NET,Codec Facilities Ltd,14338Y
Gloucester City Council,23UE,Crematorium,HC200,Memorial Plaques,5053,Cheviott Keepsake,08/07/2015,404333,70,NET,Teleshore (Uk) Ltd,56819G
Gloucester City Council,23UE,Crematorium,HC200,Memorial Plaques,5053,plaques,08/07/2015,404508,459,NET,Arkell & Hurcombe,59812T
Gloucester City Council,23UE,Crematorium,HC200,Operational Equipment <5000,5012,Gates,08/07/2015,404582,2088.93,NET,Gloucester Street Forge,11069C
Gloucester City Council,23UE,Crematorium,HC200,Repair/Maint Of Monuments,3004,Addition to Sanctum,08/07/2015,404327,129,NET,The Columbaria Company,55078T
Gloucester City Council,23UE,Gates Streets,GY014,Contract Payments,20,Hollie Gazzard bench,08/07/2015,404554,5450,CAP,Matthew Burt Ltd,15765N
Gloucester City Council,23UE,REDACTED,REDACTED,REDACTED,REDACTED,REDACTED,08/07/2015,REDACTED,135.19,NET,REDACTED,REDACTED
Gloucester City Council,23UE,REDACTED,REDACTED,REDACTED,REDACTED,REDACTED,08/07/2015,REDACTED,100,NET,REDACTED,REDACTED
Gloucester City Council,23UE,REDACTED,REDACTED,REDACTED,REDACTED,REDACTED,08/07/2015,REDACTED,100,NET,REDACTED,REDACTED
Gloucester City Council,23UE,REDACTED,REDACTED,REDACTED,REDACTED,REDACTED,08/07/2015,REDACTED,100,NET,REDACTED,REDACTED
Gloucester City Council,23UE,REDACTED,REDACTED,REDACTED,REDACTED,REDACTED,08/07/2015,REDACTED,274.58,NET,REDACTED,REDACTED
Gloucester City Council,23UE,Guildhall Sound Desks,LY059,Contract Payments,20,various goods,08/07/2015,404498,254.63,CAP,Cpc,52980M
Gloucester City Council,23UE,Guildhall Sound Desks,LY059,Contract Payments,20,XLR plugs,08/07/2015,404497,54.45,CAP,Cpc,52980M
Gloucester City Council,23UE,Homelessness,CH120,Fees For Services Received,5350,INTERPRETER,08/07/2015,404744,14.7,NET,Prime Production Ltd,06262F
Gloucester City Council,23UE,Homelessness,CH120,Fees For Services Received,5350,INTERPRETER,08/07/2015,404745,74.55,NET,Prime Production Ltd,06262F
Gloucester City Council,23UE,Homelessness,CH120,Fees For Services Received,5350,Medical Advice,08/07/2015,403359,70,NET,Now Medical,03468L
Gloucester City Council,23UE,REDACTED,REDACTED,REDACTED,REDACTED,REDACTED,08/07/2015,REDACTED,272.72,NET,REDACTED,REDACTED
Gloucester City Council,23UE,REDACTED,REDACTED,REDACTED,REDACTED,REDACTED,08/07/2015,REDACTED,489.44,NET,REDACTED,REDACTED
Gloucester City Council,23UE,Homelessness Prevention,CH122,Fees For Services Received,5350,Medical Advice,08/07/2015,403359,25,NET,Now Medical,03468L
Gloucester City Council,23UE,REDACTED,REDACTED,REDACTED,REDACTED,REDACTED,08/07/2015,REDACTED,150,NET,REDACTED,REDACTED
Gloucester City Council,23UE,REDACTED,REDACTED,REDACTED,REDACTED,REDACTED,08/07/2015,REDACTED,500,NET,REDACTED,REDACTED
Gloucester City Council,23UE,Housing Strategy & Enabling,CH110,Fees For Services Received,5350,consultancy advice,08/07/2015,404514,2022.4,NET,Tetlow King Planning Ltd,57245D
Gloucester City Council,23UE,Innsworth Lane Sports Pitches,LY079,Contract Payments,20,re c/n 17026 retention invoiced in error,08/07/2015,404747,887.1,CAP,Maxwell Amenity Ltd,00960F
Gloucester City Council,23UE,Innsworth Lane Sports Pitches,LY079,Contract Payments,20,Renovation Work - Innsworth Lane Pitches,08/07/2015,402030,34596.9,CAP,Maxwell Amenity Ltd,00960F
Gloucester City Council,23UE,Investment Property,RB500,Fire Alarm Maintenance,3053,Emergency Lights,08/07/2015,404297,225.5,NET,A & E Fire Equipment Limited,54289L
Gloucester City Council,23UE,Investment Property,RB500,General Repair/Maint Buildings,3000,Consultant,08/07/2015,404594,112.5,NET,Riba Enterprises,09988U
Gloucester City Council,23UE,Investment Property,RB500,General Repair/Maint Buildings,3000,publication,08/07/2015,404172,186.58,NET,Riba Enterprises,09988U
Gloucester City Council,23UE,Registration Of Electors,RS400,Postages,5400,acct 0870585031 postage,08/07/2015,404556,102.6,NET,Royal Mail S.Wales & South West,35830S
Gloucester City Council,23UE,Rehousing,CH111,Fees For Services Received,5350,Medical Advice,08/07/2015,403359,210,NET,Now Medical,03468L
Gloucester City Council,23UE,Retail Market - Landlord,HM300,Cleaning Materials,3600,cleaning materials,08/07/2015,404547,120.79,NET,Core Hygiene Ltd,03885P
Gloucester City Council,23UE,Tourism Marketing,LT100,Advertising And Publicity,5702,June Incentive Board,08/07/2015,404495,20,NET,Diversified Business Communications Uk Ltd,15016R
Gloucester City Council,23UE,Treasury Management,VR110,Brokerage Fees,5951,BROKER FEES JUNE 2015,08/07/2015,404681,65.75,NET,Martin Brokers (Uk) Plc,51416J
Gloucester City Council,23UE,Ugly Structures,GY010,Contract Payments,20,CGI Images for Eastgate St & Kingswalk,08/07/2015,404549,950,CAP,Astam G.B.C. Consultancy Ltd,55027L
Gloucester City Council,23UE,Utilities,PT502,Electricity Supply,3110,UTILITIES TO JUNE 2015,08/07/2015,404376,3703.75,NET,West Mercia Energy,11669Z
Gloucester City Council,23UE,Utilities,PT502,Electricity Supply,3110,UTILITIES TO JUNE 2015,08/07/2015,404682,21100.58,NET,West Mercia Energy,11669Z
Gloucester City Council,23UE,Utilities,PT502,Gas Supply,3100,UTILITIES TO JUNE 2015,08/07/2015,404682,16749.13,NET,West Mercia Energy,11669Z
Gloucester City Council,23UE,REDACTED,REDACTED,REDACTED,REDACTED,REDACTED,08/07/2015,REDACTED,1079.08,NET,REDACTED,REDACTED
Gloucester City Council,23UE,REDACTED,REDACTED,REDACTED,REDACTED,REDACTED,08/07/2015,REDACTED,233.75,NET,REDACTED,REDACTED
Gloucester City Council,23UE,REDACTED,REDACTED,REDACTED,REDACTED,REDACTED,08/07/2015,REDACTED,59.5,NET,REDACTED,REDACTED
Gloucester City Council,23UE,REDACTED,REDACTED,REDACTED,REDACTED,REDACTED,08/07/2015,REDACTED,80.75,NET,REDACTED,REDACTED
Gloucester City Council,23UE,REDACTED,REDACTED,REDACTED,REDACTED,REDACTED,08/07/2015,REDACTED,251.6,NET,REDACTED,REDACTED
Gloucester City Council,23UE,Business Transformation & Tech,RT700,Computer Hardware <5000,5420,ACCT 510738303 LIFT LINE,09/07/2015,403758,16.99,NET,Virgin Media Payments Ltd,09376J
Gloucester City Council,23UE,Business Transformation & Tech,RT700,Computer Hardware <5000,5420,Blueyonder Multiple User Jun - Jul 2015,09/07/2015,402884,80,NET,Virgin Media Payments Ltd,09376J
Gloucester City Council,23UE,Business Transformation & Tech,RT700,Computer Hardware <5000,5420,Charges June 2015,09/07/2015,404397,79.25,NET,Bt Payment Services Ltd,56283E
Gloucester City Council,23UE,Business Transformation & Tech,RT700,Computer Hardware <5000,5420,Charges May - Jun 2015,09/07/2015,404429,199.51,NET,Virgin Media Business,01869B
Gloucester City Council,23UE,Business Transformation & Tech,RT700,Computer Hardware <5000,5420,Office Connect Licences,09/07/2015,404322,405.58,NET,Northgate Public Services Uk Ltd,08982S
Gloucester City Council,23UE,Business Transformation & Tech,RT700,Computer Hardware Maintenance,5426,Maintenance Agreement,09/07/2015,404158,99.81,NET,Stanford Marsh Ltd,51139M
Gloucester City Council,23UE,Business Transformation & Tech,RT700,Computer Hardware Maintenance,5426,Rental of Scanner,09/07/2015,403353,210,NET,Stanford Marsh Ltd,51139M
Gloucester City Council,23UE,Business Transformation & Tech,RT700,Computer Hardware Maintenance,5426,Rental of Scanner,09/07/2015,403354,315,NET,Stanford Marsh Ltd,51139M
Gloucester City Council,23UE,Business Transformation & Tech,RT700,Computer Software Maintenance,5427,Annual Software Support,09/07/2015,404318,269.38,NET,Northgate Public Services Uk Ltd,08982S
Gloucester City Council,23UE,Business Transformation & Tech,RT700,Computer Software Maintenance,5427,Support & Maintenance,09/07/2015,404320,422.5,NET,Northgate Public Services Uk Ltd,08982S
Gloucester City Council,23UE,Business Transformation & Tech,RT700,Internet Service Provider Fees,5429,ACCT 510738402,09/07/2015,403759,33,NET,Virgin Media Payments Ltd,09376J
Gloucester City Council,23UE,Business Transformation & Tech,RT700,Internet Service Provider Fees,5429,ACCT 511159201,09/07/2015,403760,80,NET,Virgin Media Payments Ltd,09376J
Gloucester City Council,23UE,Business Transformation & Tech,RT700,Internet Service Provider Fees,5429,Blueyonder Jul - Aug 2015,09/07/2015,404249,80,NET,Virgin Media Payments Ltd,09376J
Gloucester City Council,23UE,Business Transformation & Tech,RT700,Internet Service Provider Fees,5429,Business Broadband Jun - Jul 2015,09/07/2015,403875,30,NET,Virgin Media Payments Ltd,09376J
Gloucester City Council,23UE,Business Transformation & Tech,RT700,Internet Service Provider Fees,5429,Business Broadband Jun - Jul 2015,09/07/2015,403876,39,NET,Virgin Media Payments Ltd,09376J
Gloucester City Council,23UE,Business Transformation & Tech,RT700,Internet Service Provider Fees,5429,Charges Apr - May 2015,09/07/2015,402891,185.91,NET,Virgin Media Business,01869B
Gloucester City Council,23UE,Business Transformation & Tech,RT700,Telephones And Fax,5410,Rental Charges,09/07/2015,404175,85.5,NET,Bt Payment Services Ltd,56283E
Gloucester City Council,23UE,Cemeteries,HC300,Basic Pay - Temporary Staff,2751,Temporary staff,09/07/2015,404337,439.88,NET,Premiere Employment Group Ltd,55468Z
Gloucester City Council,23UE,City Museum And Art Gallery,LM200,Advertising And Publicity,5702,Jul-Dec15 Gloucester Museums distrib,09/07/2015,404731,659.62,NET,Glide Media,58829J
Gloucester City Council,23UE,Coll Fund Revenue Account,ZC100,Nndr Central Share,7474,BRR pooling payment,09/07/2015,404827,474007,NET,Gloucestershire County Council,18650D
Gloucester City Council,23UE,Coll Fund Revenue Account,ZC100,Nndr Tariff,7473,BRR pooling payment,09/07/2015,404828,1485345,NET,Stroud District Council,74737T
Gloucester City Council,23UE,Countryside Unit,LP201,Safety Equipment,5013,safety boots,09/07/2015,404729,167.38,NET,Safpro Industrial Supply Co,39190W
Gloucester City Council,23UE,Development Management,PT200,Pre Planning Applications,9316,PREAPP RETURNED,09/07/2015,404807,200,NET,Quattro Ltd,01102E
Gloucester City Council,23UE,Docks Complex - Services,RB100,Catering Provisions -Food,5110,FOOD,09/07/2015,403562,12.88,NET,Janes Pantry,24500W
Gloucester City Council,23UE,Docks Complex - Services,RB100,Catering Provisions -Food,5110,FOOD,09/07/2015,403563,7.92,NET,Janes Pantry,24500W
Gloucester City Council,23UE,Docks Complex - Services,RB100,Catering Provisions -Food,5110,FOOD,09/07/2015,403564,24.6,NET,Janes Pantry,24500W
Gloucester City Council,23UE,Docks Complex - Services,RB100,Catering Provisions -Food,5110,FOOD,09/07/2015,403565,16.13,NET,Janes Pantry,24500W
Gloucester City Council,23UE,Docks Complex - Services,RB100,Catering Provisions -Food,5110,FOOD,09/07/2015,403567,9.69,NET,Janes Pantry,24500W
Gloucester City Council,23UE,Docks Complex - Services,RB100,Catering Provisions -Food,5110,FOOD,09/07/2015,403568,9.76,NET,Janes Pantry,24500W
Gloucester City Council,23UE,Docks Complex - Services,RB100,Catering Provisions -Food,5110,FOOD,09/07/2015,403569,10.27,NET,Janes Pantry,24500W
Gloucester City Council,23UE,Docks Complex - Services,RB100,Catering Provisions -Food,5110,FOOD,09/07/2015,403570,31,NET,Janes Pantry,24500W
Gloucester City Council,23UE,Docks Complex - Services,RB100,Catering Provisions -Food,5110,FOOD,09/07/2015,403571,16.13,NET,Janes Pantry,24500W
Gloucester City Council,23UE,Docks Complex - Services,RB100,Catering Provisions -Food,5110,FOOD,09/07/2015,403572,10.1,NET,Janes Pantry,24500W
Gloucester City Council,23UE,Docks Complex - Services,RB100,Catering Provisions -Food,5110,FOOD,09/07/2015,403573,5.72,NET,Janes Pantry,24500W
Gloucester City Council,23UE,Docks Complex - Services,RB100,Catering Provisions -Food,5110,FOOD,09/07/2015,403574,15.2,NET,Janes Pantry,24500W
Gloucester City Council,23UE,Docks Complex - Services,RB100,Catering Provisions -Food,5110,FOOD,09/07/2015,403575,13.25,NET,Janes Pantry,24500W
Gloucester City Council,23UE,Docks Complex - Services,RB100,Catering Provisions -Food,5110,FOOD,09/07/2015,403576,17.74,NET,Janes Pantry,24500W
Gloucester City Council,23UE,Docks Complex - Services,RB100,Catering Provisions -Food,5110,FOOD,09/07/2015,403577,15.2,NET,Janes Pantry,24500W
Gloucester City Council,23UE,Docks Complex - Services,RB100,Catering Provisions -Food,5110,FOOD,09/07/2015,403578,10.48,NET,Janes Pantry,24500W
Gloucester City Council,23UE,Docks Complex - Services,RB100,Catering Provisions -Food,5110,FOOD,09/07/2015,403579,13.51,NET,Janes Pantry,24500W
Gloucester City Council,23UE,Docks Complex - Services,RB100,Catering Provisions -Food,5110,FOOD,09/07/2015,403580,31.22,NET,Janes Pantry,24500W
Gloucester City Council,23UE,Docks Complex - Services,RB100,Catering Provisions -Food,5110,FOOD,09/07/2015,403581,6.66,NET,Janes Pantry,24500W
Gloucester City Council,23UE,Docks Complex - Services,RB100,Catering Provisions -Food,5110,FOOD,09/07/2015,403585,17.74,NET,Janes Pantry,24500W
Gloucester City Council,23UE,Folk Museum,LM210,Advertising And Publicity,5702,Jul-Dec15 Gloucester Museums distrib,09/07/2015,404731,659.63,NET,Glide Media,58829J
Gloucester City Council,23UE,Guildhall Bar And Caf�,LA210,Catering Provisions -Food,5110,Food w/e 07/06/2015,09/07/2015,403835,40.9,NET,Janes Pantry,24500W
Gloucester City Council,23UE,Guildhall Bar And Caf�,LA210,Catering Provisions -Food,5110,Food w/e 21/06/2015,09/07/2015,404382,40,NET,Janes Pantry,24500W
Gloucester City Council,23UE,Off Street Car Parks,PP110,General Repair/Maint Buildings,3000,repairs to service ramp pothole,09/07/2015,404677,72.5,NET,Colliers International,15540S
Gloucester City Council,23UE,Parks Contract Management,LP100,Maint Of Grounds - General,3030,replacement swing parts,09/07/2015,404805,253,NET,Sutcliffe Play (Southwest) Ltd,02238S
Gloucester City Council,23UE,Printing,RP103,Printing,5300,Print Room Sales April 2015,09/07/2015,402148,1638.29,NET,Alpha Colour Printers Ltd,00945B
Gloucester City Council,23UE,The Arbor,HC501,Catering Provisions -Food,5110,Food w/e07/06/2015,09/07/2015,403836,82.22,NET,Janes Pantry,24500W
Gloucester City Council,23UE,The Arbor,HC501,Cleaning Materials,3600,Cleaning Materials,09/07/2015,404328,78.38,NET,Core Hygiene Ltd,03885P
Gloucester City Council,23UE,Tic Theatre Ticket Sales,LT107,Materials For Sale,5080,SPOTLIGHT 04/07/15,09/07/2015,404806,378,NET,Kings Theatre,54213X
Gloucester City Council,23UE,Tic Theatre Ticket Sales,LT107,Sale Of Goods And Services,9230,SPOTLIGHT 04/07/15,09/07/2015,404806,-31.5,NET,Kings Theatre,54213X
Gloucester City Council,23UE,Tic Trading,LT110,Publications For Sale,5064,goods for resale,09/07/2015,404723,335.89,NET,David Whyman Map Sales,02653Z
Gloucester City Council,23UE,Westgate Leisure Area S106,LY155,Contract Payments,20,Landscape Services - Westgate Leisure,09/07/2015,404721,1470,CAP,Peter Quinn Associates,12891L
Gloucester City Council,23UE,REDACTED,REDACTED,REDACTED,REDACTED,REDACTED,10/07/2015,REDACTED,175,NET,REDACTED,REDACTED
Gloucester City Council,23UE,Blackfriars,LA609,Security Services Fees,5351,June 2015 doorstaff,10/07/2015,404876,112.5,NET,Nsgl Ltd (Security Acct),12539E
Gloucester City Council,23UE,Cemeteries,HC300,Routine R And M - Vehicles,4011,parts,10/07/2015,404865,134,NET,Garden Machinery Gloucester,55641K
Gloucester City Council,23UE,REDACTED,REDACTED,REDACTED,REDACTED,REDACTED,10/07/2015,REDACTED,91,NET,REDACTED,REDACTED
Gloucester City Council,23UE,City Museum And Art Gallery,LM200,Sewerage And Environ Charges,3402,City Museum APR-JUN15 sanitary waste,10/07/2015,404884,43.95,NET,Ocs Group Uk Limited T/A Cannon,06506A
Gloucester City Council,23UE,Civica Fod Contract,RT260,Contracted Services,6970,FOD Y3 Q3 01/07/15-30/09/15,10/07/2015,404736,189455.02,NET,Civica Uk Ltd,10841X
Gloucester City Council,23UE,Contact Centre,RB300,Printing,5300,paper,10/07/2015,404839,451,NET,Premier Paper Group Ltd,09166Y
Gloucester City Council,23UE,Contact Centre,RB300,Stationery,5302,stationery,10/07/2015,404838,60,NET,Lyreco Uk Ltd,11746G
Gloucester City Council,23UE,Council Streetcare Team,HI101,Window Cleaning,3610,window cleaning,10/07/2015,402034,130,NET,Poles Apart Window Cleaning,11636R
Gloucester City Council,23UE,Countryside Unit,LP201,Publications,5060,subscription 2015/16,10/07/2015,404871,45,NET,British Wildlife Publishing,04566A
Gloucester City Council,23UE,Countryside Unit,LP201,Routine R And M - Vehicles,4011,Xenon pole,10/07/2015,404849,27.81,NET,Imperial Commercials (Gloucester) Ltd,12764V
Gloucester City Council,23UE,Democratic Services,RS100,Members Training,5535,public speaking training,10/07/2015,404854,80,NET,Conservative Councillors Association,03312W
Gloucester City Council,23UE,Docks Complex - Services,RB100,Catering Provisions -Food,5110,buffet,10/07/2015,404923,55.44,NET,Janes Pantry,24500W
Gloucester City Council,23UE,Docks Complex - Services,RB100,Catering Provisions -Food,5110,buffet,10/07/2015,404926,51.48,NET,Janes Pantry,24500W
Gloucester City Council,23UE,Docks Complex - Services,RB100,Catering Provisions -Food,5110,COFFEE,10/07/2015,404945,147.63,NET,Ethical Addictions Ltd,11654N
Gloucester City Council,23UE,Docks Complex - Services,RB100,Catering Provisions -Food,5110,food,10/07/2015,404832,503.28,NET,3663,55585U
Gloucester City Council,23UE,Docks Complex - Services,RB100,Catering Provisions -Food,5110,food,10/07/2015,404841,33.63,NET,Total Produce Gloucester,12645E
Gloucester City Council,23UE,Docks Complex - Services,RB100,Catering Provisions -Food,5110,food,10/07/2015,404842,65.92,NET,Total Produce Gloucester,12645E
Gloucester City Council,23UE,Docks Complex - Services,RB100,Catering Provisions -Food,5110,food,10/07/2015,404843,28.25,NET,Total Produce Gloucester,12645E
Gloucester City Council,23UE,Docks Complex - Services,RB100,Catering Provisions -Food,5110,food,10/07/2015,404893,35.74,NET,Total Produce Gloucester,12645E
Gloucester City Council,23UE,Docks Complex - Services,RB100,Catering Provisions -Food,5110,food,10/07/2015,404894,44.28,NET,Total Produce Gloucester,12645E
Gloucester City Council,23UE,Docks Complex - Services,RB100,Catering Provisions -Food,5110,food,10/07/2015,404895,10.44,NET,Total Produce Gloucester,12645E
Gloucester City Council,23UE,Docks Complex - Services,RB100,Catering Provisions -Food,5110,food,10/07/2015,404896,306.38,NET,3663,55585U
Gloucester City Council,23UE,Docks Complex - Services,RB100,Catering Provisions -Food,5110,food,10/07/2015,404897,214.46,NET,3663,55585U
Gloucester City Council,23UE,Docks Complex - Services,RB100,Catering Provisions -Food,5110,food,10/07/2015,404898,239.87,NET,3663,55585U
Gloucester City Council,23UE,Docks Complex - Services,RB100,Catering Provisions -Food,5110,food,10/07/2015,404899,108.93,NET,3663,55585U
Gloucester City Council,23UE,Docks Complex - Services,RB100,Catering Provisions -Food,5110,food,10/07/2015,404901,16.13,NET,Janes Pantry,24500W
Gloucester City Council,23UE,Docks Complex - Services,RB100,Catering Provisions -Food,5110,food,10/07/2015,404902,20.56,NET,Janes Pantry,24500W
Gloucester City Council,23UE,Docks Complex - Services,RB100,Catering Provisions -Food,5110,food,10/07/2015,404903,10.15,NET,Janes Pantry,24500W
Gloucester City Council,23UE,Docks Complex - Services,RB100,Catering Provisions -Food,5110,food,10/07/2015,404904,9.71,NET,Janes Pantry,24500W
Gloucester City Council,23UE,Docks Complex - Services,RB100,Catering Provisions -Food,5110,food,10/07/2015,404905,10.52,NET,Janes Pantry,24500W
Gloucester City Council,23UE,Docks Complex - Services,RB100,Catering Provisions -Food,5110,food,10/07/2015,404906,16.13,NET,Janes Pantry,24500W
Gloucester City Council,23UE,Docks Complex - Services,RB100,Catering Provisions -Food,5110,food,10/07/2015,404907,13.7,NET,Janes Pantry,24500W
Gloucester City Council,23UE,Docks Complex - Services,RB100,Catering Provisions -Food,5110,food,10/07/2015,404908,15.73,NET,Janes Pantry,24500W
Gloucester City Council,23UE,Docks Complex - Services,RB100,Catering Provisions -Food,5110,food,10/07/2015,404909,19.55,NET,Janes Pantry,24500W
Gloucester City Council,23UE,Docks Complex - Services,RB100,Catering Provisions -Food,5110,food,10/07/2015,404910,9.76,NET,Janes Pantry,24500W
Gloucester City Council,23UE,Docks Complex - Services,RB100,Catering Provisions -Food,5110,food,10/07/2015,404911,13.05,NET,Janes Pantry,24500W
Gloucester City Council,23UE,Docks Complex - Services,RB100,Catering Provisions -Food,5110,food,10/07/2015,404912,11.87,NET,Janes Pantry,24500W
Gloucester City Council,23UE,Docks Complex - Services,RB100,Catering Provisions -Food,5110,food,10/07/2015,404913,12.24,NET,Janes Pantry,24500W
Gloucester City Council,23UE,Docks Complex - Services,RB100,Catering Provisions -Food,5110,food,10/07/2015,404914,6.65,NET,Janes Pantry,24500W
Gloucester City Council,23UE,Docks Complex - Services,RB100,Catering Provisions -Food,5110,food,10/07/2015,404915,12.2,NET,Janes Pantry,24500W
Gloucester City Council,23UE,Docks Complex - Services,RB100,Catering Provisions -Food,5110,food,10/07/2015,404916,31.64,NET,Janes Pantry,24500W
Gloucester City Council,23UE,Docks Complex - Services,RB100,Catering Provisions -Food,5110,food,10/07/2015,404917,8.97,NET,Janes Pantry,24500W
Gloucester City Council,23UE,Docks Complex - Services,RB100,Catering Provisions -Food,5110,food,10/07/2015,404918,8.9,NET,Janes Pantry,24500W
Gloucester City Council,23UE,Docks Complex - Services,RB100,Catering Provisions -Food,5110,food,10/07/2015,404919,7.92,NET,Janes Pantry,24500W
Gloucester City Council,23UE,Docks Complex - Services,RB100,Catering Provisions -Food,5110,food,10/07/2015,404920,11.37,NET,Janes Pantry,24500W
Gloucester City Council,23UE,Docks Complex - Services,RB100,Catering Provisions -Food,5110,food,10/07/2015,404921,13.05,NET,Janes Pantry,24500W
Gloucester City Council,23UE,Docks Complex - Services,RB100,Catering Provisions -Food,5110,food,10/07/2015,404922,11.45,NET,Janes Pantry,24500W
Gloucester City Council,23UE,Docks Complex - Services,RB100,Catering Provisions -Food,5110,food,10/07/2015,404925,37.15,NET,Total Produce Gloucester,12645E
Gloucester City Council,23UE,Docks Complex - Services,RB100,Catering Provisions -Food,5110,food,10/07/2015,404927,8.64,NET,Total Produce Gloucester,12645E
Gloucester City Council,23UE,Docks Complex - Services,RB100,Catering Provisions -Food,5110,food,10/07/2015,404928,18.25,NET,Total Produce Gloucester,12645E
Gloucester City Council,23UE,Docks Complex - Services,RB100,Catering Provisions -Food,5110,food,10/07/2015,404929,27.39,NET,Total Produce Gloucester,12645E
Gloucester City Council,23UE,Docks Complex - Services,RB100,Catering Provisions -Food,5110,food,10/07/2015,404930,8.64,NET,Total Produce Gloucester,12645E
Gloucester City Council,23UE,Docks Complex - Services,RB100,Catering Provisions -Food,5110,food,10/07/2015,404931,16.68,NET,Total Produce Gloucester,12645E
Gloucester City Council,23UE,Docks Complex - Services,RB100,Catering Provisions -Food,5110,food,10/07/2015,404932,30.49,NET,Total Produce Gloucester,12645E
Gloucester City Council,23UE,Docks Complex - Services,RB100,Catering Provisions -Food,5110,food,10/07/2015,404933,13.08,NET,Total Produce Gloucester,12645E
Gloucester City Council,23UE,Docks Complex - Services,RB100,Catering Provisions -Food,5110,food,10/07/2015,404934,45.21,NET,Total Produce Gloucester,12645E
Gloucester City Council,23UE,Docks Complex - Services,RB100,Catering Provisions -Food,5110,food,10/07/2015,404935,20.79,NET,Total Produce Gloucester,12645E
Gloucester City Council,23UE,Docks Complex - Services,RB100,Catering Provisions -Food,5110,food,10/07/2015,404936,39.32,NET,Total Produce Gloucester,12645E
Gloucester City Council,23UE,Docks Complex - Services,RB100,Catering Provisions -Food,5110,food,10/07/2015,404937,40.44,NET,Total Produce Gloucester,12645E
Gloucester City Council,23UE,Docks Complex - Services,RB100,Catering Provisions -Food,5110,food,10/07/2015,404938,52.12,NET,Total Produce Gloucester,12645E
Gloucester City Council,23UE,Docks Complex - Services,RB100,Catering Provisions -Food,5110,food,10/07/2015,404939,18.64,NET,Total Produce Gloucester,12645E
Gloucester City Council,23UE,Docks Complex - Services,RB100,Catering Provisions -Food,5110,food,10/07/2015,404940,8.64,NET,Total Produce Gloucester,12645E
Gloucester City Council,23UE,Docks Complex - Services,RB100,Catering Provisions -Food,5110,food,10/07/2015,404941,41.9,NET,Total Produce Gloucester,12645E
Gloucester City Council,23UE,Docks Complex - Services,RB100,Catering Provisions -Food,5110,food,10/07/2015,404942,21.48,NET,Total Produce Gloucester,12645E
Gloucester City Council,23UE,Docks Complex - Services,RB100,Catering Provisions -Food,5110,food,10/07/2015,404943,35.39,NET,Total Produce Gloucester,12645E
Gloucester City Council,23UE,Docks Complex - Services,RB100,General Repair/Maint Buildings,3000,Herbert w/h door repairs,10/07/2015,404553,180,NET,Pro Door Ltd,04760C
Gloucester City Council,23UE,Economic Development,FP300,Business Grant,7116,BUSINESS RATES GRANT,10/07/2015,404867,875,NET,Black Letter (Gloucester) Ltd,15491D
Gloucester City Council,23UE,Economic Development,FP300,Business Grant,7116,GRIFFITHS MARSHALL BROADBAND VOUCHER,10/07/2015,404866,3000,NET,Eurolink Connect Limited,15772S
Gloucester City Council,23UE,REDACTED,REDACTED,REDACTED,REDACTED,REDACTED,10/07/2015,REDACTED,415,NET,REDACTED,REDACTED
Gloucester City Council,23UE,Green Garden Waste,HI105,Fees For Services Received,5350,CRN2014-18,10/07/2015,404858,7300,NET,Civica Uk Ltd,10841X
Gloucester City Council,23UE,Green Garden Waste,HI105,Printing,5300,Garden Waste labels,10/07/2015,404886,261,NET,Eurolabel,10252Z
Gloucester City Council,23UE,REDACTED,REDACTED,REDACTED,REDACTED,REDACTED,10/07/2015,REDACTED,100,NET,REDACTED,REDACTED
Gloucester City Council,23UE,REDACTED,REDACTED,REDACTED,REDACTED,REDACTED,10/07/2015,REDACTED,480,NET,REDACTED,REDACTED
Gloucester City Council,23UE,REDACTED,REDACTED,REDACTED,REDACTED,REDACTED,10/07/2015,REDACTED,240,NET,REDACTED,REDACTED
Gloucester City Council,23UE,REDACTED,REDACTED,REDACTED,REDACTED,REDACTED,10/07/2015,REDACTED,430,NET,REDACTED,REDACTED
Gloucester City Council,23UE,Guildhall Events,LA200,Security Services Fees,5351,June 2015 doorstaff,10/07/2015,404876,1071.75,NET,Nsgl Ltd (Security Acct),12539E
Gloucester City Council,23UE,REDACTED,REDACTED,REDACTED,REDACTED,REDACTED,10/07/2015,REDACTED,272.72,NET,REDACTED,REDACTED
Gloucester City Council,23UE,REDACTED,REDACTED,REDACTED,REDACTED,REDACTED,10/07/2015,REDACTED,50,NET,REDACTED,REDACTED
Gloucester City Council,23UE,Human Resources,EH100,Fees For Services Received,5350,OH nurse services,10/07/2015,404869,385.84,NET,Industrial Medical & Safety Services Ltd,10668L
Gloucester City Council,23UE,Human Resources,EH100,Fees For Services Received,5350,PAYROLL MAY 2015,10/07/2015,403744,2628.65,NET,Gloucestershire County Council,18650D
Gloucester City Council,23UE,Investment Property,RB500,Fire Alarm Maintenance,3053,Eastgate Market fire alarm inspection,10/07/2015,404555,96.33,NET,A & E Fire Equipment Limited,54289L
Gloucester City Council,23UE,Kings Quarter,RY146,Contract Payments,20,CDM service re Kings Square repaving,10/07/2015,404891,284.78,CAP,Julian Stokes Management Ltd,09046K
Gloucester City Council,23UE,Legal Services,RS200,Basic Pay - Temporary Staff,2751,Temporary staff w/e 4/1/15,10/07/2015,404892,197.55,NET,Premiere Employment Group Ltd,55468Z
Gloucester City Council,23UE,Members Support,RC300,Members Training,5535,Essential Skills training,10/07/2015,404837,45,NET,South West Councils,56523H
Gloucester City Council,23UE,Play Area Refurbishment,LY071,Contract Payments,20,picnic set,10/07/2015,404852,826,CAP,Centrewire Ltd,54156P
Gloucester City Council,23UE,Printing,RP103,Printing,5300,Printing JUN15,10/07/2015,404877,2011.43,NET,Alpha Colour Printers Ltd,00945B
Gloucester City Council,23UE,Safer Stronger Communities,FP841,Other Minor Supplies Services,5590,Paws on Patrol lunches,10/07/2015,404864,449.61,NET,"Police & Crime Commissioner, Gloucestershire",49521B
Gloucester City Council,23UE,Tic Trading,LT110,Materials For Sale,5080,goods for resale,10/07/2015,404500,237.72,NET,Judge Sampson Ltd,14513E
Gloucester City Council,23UE,Tic Trading,LT110,Materials For Sale,5080,goods for resale,10/07/2015,404860,246.52,NET,New English Teas Ltd,00118Y
Gloucester City Council,23UE,Aspire Admin Charges,LC105,Contracted Services,6970,JUL15 management fees,13/07/2015,404725,54792.25,NET,Aspire Sports & Cultural Trust,08135V
Gloucester City Council,23UE,Business Transformation & Tech,RT700,Computer Hardware <5000,5420,Latitude E6540,13/07/2015,402058,619,NET,Dell Computers Corporation Ltd,55920C
Gloucester City Council,23UE,Business Transformation & Tech,RT700,Computer Software <5000,5425,PSN upgrades,13/07/2015,404496,5150,NET,Idox Group,07229U
Gloucester City Council,23UE,Cemeteries,HC300,Clothing,5200,thermal grip gloves,13/07/2015,404728,29.5,NET,Safpro Industrial Supply Co,39190W
Gloucester City Council,23UE,Cemeteries,HC300,Clothing,5200,work clothes,13/07/2015,404494,22.1,NET,Safpro Industrial Supply Co,39190W
Gloucester City Council,23UE,Civil Parking Enforcement,PT741,On Street Parking Charges,6550,PCN Collections Oct 2014,13/07/2015,394453,5115.75,NET,Gloucestershire County Council,18650D
Gloucester City Council,23UE,Civil Parking Enforcement,PT741,On Street Parking Charges,6550,PCN income 2014-June 2015,13/07/2015,405094,15605.86,NET,Gloucestershire County Council,18650D
Gloucester City Council,23UE,Client Revs & Bens Contract,RT240,Bailiffs Fees,5368,VAT due on statutory fees,13/07/2015,404675,0,NET,Bristow & Sutor,05450M
Gloucester City Council,23UE,Client Revs & Bens Contract,RT240,Bailiffs Fees,5368,VAT due on statutory fees,13/07/2015,404676,0,NET,Bristow & Sutor,05450M
Gloucester City Council,23UE,Client Revs & Bens Contract,RT240,Bailiffs Fees,5368,VAT only invoice,13/07/2015,404727,0,NET,Bristow & Sutor,05450M
Gloucester City Council,23UE,Contact Centre,RB300,Postages,5400,acct 0252446000 JUN15,13/07/2015,404882,1278.64,NET,Royal Mail S.Wales & South West,35830S
Gloucester City Council,23UE,Contact Centre,RB300,Publications,5060,NEWSPAPERS,13/07/2015,404987,162.7,NET,Ymk Supermarket,55281U
Gloucester City Council,23UE,Contact Centre,RB300,Publications,5060,NEWSPAPERS,13/07/2015,404988,164.6,NET,Ymk Supermarket,55281U
Gloucester City Council,23UE,Corporate Reporting /Financing,RC504,Fees For Services Received,5350,childcare vouchers July 2015,13/07/2015,404835,25.51,NET,Wider Plan Ltd ( Formerly Kiddivouchers),07893B
Gloucester City Council,23UE,Council Streetcare Team,HI101,Maint Of Grounds - General,3030,padlocks,13/07/2015,404516,102.5,NET,London Tools Ltd,13538X
Gloucester City Council,23UE,Countryside Unit,LP201,Livestock Foodstuff,5841,salt lick & chainsaw trousers,13/07/2015,404735,13.99,NET,Countrywide Farmers,55687J
Gloucester City Council,23UE,Countryside Unit,LP201,Safety Equipment,5013,salt lick & chainsaw trousers,13/07/2015,404735,173.62,NET,Countrywide Farmers,55687J
Gloucester City Council,23UE,Crematorium,HC200,Cleaning Materials,3600,Disposal Unit,13/07/2015,404307,16.78,NET,Minster Cleaning Services,02158R
Gloucester City Council,23UE,Crematorium,HC200,Memorial Plaques,5053,keepsakes,13/07/2015,404546,36,NET,Teleshore (Uk) Ltd,56819G
Gloucester City Council,23UE,Crematorium,HC200,Memorial Plaques,5053,PLAQUES,13/07/2015,405011,357,NET,Arkell & Hurcombe,59812T
Gloucester City Council,23UE,Docks Complex - Services,RB100,Catering Provisions -Food,5110,food,13/07/2015,404924,369,NET,Janes Pantry,24500W
Gloucester City Council,23UE,Docks Complex - Services,RB100,Recycling,3631,APR-JUN recycling,13/07/2015,404693,14.5,NET,Printwaste Recycling,57114W
Gloucester City Council,23UE,Docks Complex - Services,RB100,Recycling,3631,JUN15 recycling,13/07/2015,404694,56.9,NET,Printwaste Recycling,57114W
Gloucester City Council,23UE,Docks Complex - Services,RB100,Service Charges,3020,Trade Waste Jul - Sept 2015,13/07/2015,404433,297.7,NET,Enterprise (Aol) Ltd,06695G
Gloucester City Council,23UE,Docks Complex - Services,RB100,Service Charges,3020,Trade Waste Jul - Sept 2015,13/07/2015,404434,14297.22,NET,Enterprise (Aol) Ltd,06695G
Gloucester City Council,23UE,Docks Complex - Telephones,RB120,Mobile Phones,5409,CALLS,13/07/2015,405071,3831.51,NET,Vodafone Ltd,11843H
Gloucester City Council,23UE,Dog Warden,HE400,Other Minor Supplies Services,5590,Stray Dogs,13/07/2015,404116,334.11,NET,Enterprise (Aol) Ltd,06695G
Gloucester City Council,23UE,Financial Services,RT200,Fees For Services Received,5350,VAT due on professional charges,13/07/2015,404734,0,NET,Berrymans Lace Mawer,13929B
Gloucester City Council,23UE,General Drainage Works,PY241,Contract Payments,20,Dinglewell & Green Lane flood protection,13/07/2015,404733,27531.11,CAP,Whitehouse Construction Ltd,15498N
Gloucester City Council,23UE,Guildhall Sound Desks,LY059,Contract Payments,20,CASE,13/07/2015,405037,86.16,CAP,Flightcase Warehouse,15586R
Gloucester City Council,23UE,Homelessness,CH120,Removal And Storage Fees,5513,storage charges,13/07/2015,405045,151.88,NET,Advanced Removals & Storage Ltd,57142R
Gloucester City Council,23UE,Homelessness,CH120,Removal And Storage Fees,5513,storage charges,13/07/2015,404999,348.75,NET,Advanced Removals & Storage Ltd,57142R
Gloucester City Council,23UE,REDACTED,REDACTED,REDACTED,REDACTED,REDACTED,13/07/2015,REDACTED,582.68,NET,REDACTED,REDACTED
Gloucester City Council,23UE,REDACTED,REDACTED,REDACTED,REDACTED,REDACTED,13/07/2015,REDACTED,489.44,NET,REDACTED,REDACTED
Gloucester City Council,23UE,REDACTED,REDACTED,REDACTED,REDACTED,REDACTED,13/07/2015,REDACTED,272.72,NET,REDACTED,REDACTED
Gloucester City Council,23UE,REDACTED,REDACTED,REDACTED,REDACTED,REDACTED,13/07/2015,REDACTED,530,NET,REDACTED,REDACTED
Gloucester City Council,23UE,REDACTED,REDACTED,REDACTED,REDACTED,REDACTED,13/07/2015,REDACTED,300,NET,REDACTED,REDACTED
Gloucester City Council,23UE,Homelessness Prevention,CH122,Grants To Advice Centres,7100,emergency housing,13/07/2015,404862,2546.5,NET,P3 (People Potential Possibilities),13809N
Gloucester City Council,23UE,Housing Strategy & Enabling,CH110,Fees For Services Received,5350,CONSULTANCY,13/07/2015,405021,481.4,NET,Tetlow King Planning Ltd,57245D
Gloucester City Council,23UE,Interpretation & Signage,GY012,Contract Payments,20,SPA RD JUNCTION/SOUTHGATE ST,13/07/2015,405086,720,CAP,Gloucestershire County Council,18650D
Gloucester City Council,23UE,Kings Quarter,RY146,Contract Payments,20,KINGS QTR,13/07/2015,405036,40000,CAP,Building Design Partnership Ltd,15758K
Gloucester City Council,23UE,REDACTED,REDACTED,REDACTED,REDACTED,REDACTED,13/07/2015,REDACTED,631,NET,REDACTED,REDACTED
Gloucester City Council,23UE,Nms Contract,HI102,Additional Non-Tender Items,6973,Food Caddies,13/07/2015,402356,11576.78,NET,Enterprise (Aol) Ltd,06695G
Gloucester City Council,23UE,Nms Contract,HI102,Additional Non-Tender Items,6973,Wheely Bins,13/07/2015,402355,2182.14,NET,Enterprise (Aol) Ltd,06695G
Gloucester City Council,23UE,Nms Contract,HI102,Contracted Services,6970,ENTERPRISE AOL LTD,13/07/2015,404404,11099.19,NET,Enterprise (Aol) Ltd,06695G
Gloucester City Council,23UE,Nms Contract,HI102,Contracted Services,6970,June 2015 service fee,13/07/2015,404696,488913.04,NET,Enterprise (Aol) Ltd,06695G
Gloucester City Council,23UE,Nms Contract,HI102,Contracted Services,6970,May 2015 service fee,13/07/2015,404698,489095.83,NET,Enterprise (Aol) Ltd,06695G
Gloucester City Council,23UE,Parks Contract Management,LP100,Maint Of Grounds - General,3030,Matson Park works,13/07/2015,404737,761,NET,Greenfields Garden Services Ltd,48130G
Gloucester City Council,23UE,Parks Contract Management,LP100,Maint Of Grounds - General,3030,Matson Park zip wire repair,13/07/2015,404687,120,NET,Greenfields Garden Services Ltd,48130G
Gloucester City Council,23UE,Parks Contract Management,LP100,Maint Of Grounds - General,3030,Playground Repair,13/07/2015,404119,111.24,NET,Enterprise (Aol) Ltd,06695G
Gloucester City Council,23UE,Retail Market - Landlord,HM300,Cleaning / Domestic Equipment,5011,Services July 2015,13/07/2015,404120,18.93,NET,Initial Washroom Solutions,06143R
Gloucester City Council,23UE,Retail Market - Landlord,HM300,Operational Equipment <5000,5012,Jul-15,13/07/2015,404992,280.56,NET,System Rental Uk Ltd,03239E
Gloucester City Council,23UE,Shopmobility,PE200,Cleaning Materials,3600,Shopmobility sanitary waste JUL15,13/07/2015,404548,7.11,NET,Ocs Group Uk Limited T/A Cannon,06506A
Gloucester City Council,23UE,Vehicles,RS140,Fuel,4012,fuel,13/07/2015,404880,359.37,NET,Allstar Business Solutions Ltd (Arval),06594A
Gloucester City Council,23UE,Advance City Attractions,LT109,Materials For Sale,5080,JUN15 Blue vouchers,14/07/2015,404889,16.25,NET,Blenheim Palace Visitors Partnership,10749K
Gloucester City Council,23UE,Advance City Attractions,LT109,Sale Of Goods And Services,9230,JUN15 Blue vouchers,14/07/2015,404889,-1.67,NET,Blenheim Palace Visitors Partnership,10749K
Gloucester City Council,23UE,Aspire Admin Charges,LC105,Security Services Fees,5351,AUG15 cash services,14/07/2015,405091,181.28,NET,G4s Cash Solutions (Uk) Ltd,04290V
Gloucester City Council,23UE,Blackfriars Catering,LA220,Catering Provisions -Food,5110,FOOD,14/07/2015,405005,18,NET,Taynton Farm Foods,09653F
Gloucester City Council,23UE,Blackfriars Catering,LA220,Catering Provisions -Liquor,5111,DRINK,14/07/2015,405003,78,NET,Gloucester Brewery,13373F
Gloucester City Council,23UE,REDACTED,REDACTED,REDACTED,REDACTED,REDACTED,14/07/2015,REDACTED,220.5,NET,REDACTED,REDACTED
Gloucester City Council,23UE,Business Planning & Performanc,RL500,Vocational Training,2970,Certificate in Contract Management,14/07/2015,404567,2690,NET,Cipfa,02062F
Gloucester City Council,23UE,Business Transformation & Tech,RT700,Computer Hardware <5000,5420,AMT6123,14/07/2015,405024,750,NET,Capita Business Services Limited,54095C
Gloucester City Council,23UE,Cemeteries,HC300,Basic Pay - Temporary Staff,2751,Temporary staff,14/07/2015,404732,439.88,NET,Premiere Employment Group Ltd,55468Z
Gloucester City Council,23UE,Cemeteries,HC300,Operational Materials,5070,FAN HOUSING,14/07/2015,404998,57.56,NET,Spaldings,48759Y
Gloucester City Council,23UE,Cemeteries,HC300,Operational Materials,5070,STAKES,14/07/2015,405065,1197.73,NET,Millington & Ramstedt Ltd,29815S
Gloucester City Council,23UE,Cemeteries,HC300,Operational Materials,5070,STONE,14/07/2015,405038,520,NET,Cotswold Natural Stone Ltd,08504K
Gloucester City Council,23UE,Cemeteries,HC300,Routine R And M - Vehicles,4011,SERVICE,14/07/2015,405007,54.49,NET,Garden Machinery Gloucester,55641K
Gloucester City Council,23UE,Cemeteries,HC300,Routine R And M - Vehicles,4011,SERVICE,14/07/2015,405008,90.53,NET,Garden Machinery Gloucester,55641K
Gloucester City Council,23UE,Cemeteries,HC300,Trade Refuse Tipping Fees,6297,DUMPER HIRE,14/07/2015,404989,380,NET,Allstone Sand & Gravel Aggregates Ltd,00940M
Gloucester City Council,23UE,Cemeteries,HC300,Trade Refuse Tipping Fees,6297,WASTE,14/07/2015,405062,1380,NET,Allstone Sand & Gravel Aggregates Ltd,00940M
Gloucester City Council,23UE,Cemeteries,HC300,Tyres,4014,Various Repairs,14/07/2015,404507,90.89,NET,A T S Euromaster Ltd,01860B
Gloucester City Council,23UE,Cems/Crems Admin,HC100,Security Services Fees,5351,AUG15 cash services,14/07/2015,405091,103.33,NET,G4s Cash Solutions (Uk) Ltd,04290V
Gloucester City Council,23UE,REDACTED,REDACTED,REDACTED,REDACTED,REDACTED,14/07/2015,REDACTED,100,NET,REDACTED,REDACTED
Gloucester City Council,23UE,City Museum And Art Gallery,LM200,Security Services Fees,5351,AUG15 cash services,14/07/2015,405091,90.64,NET,G4s Cash Solutions (Uk) Ltd,04290V
Gloucester City Council,23UE,City Museum Catering,LM202,Exhibits And Collections,5038,MDF,14/07/2015,405066,15.2,NET,Millington & Ramstedt Ltd,29815S
Gloucester City Council,23UE,Civic Admin And Hospitality,RC210,Other Minor Supplies Services,5590,DECANTER,14/07/2015,405000,443.25,NET,Michael Virden Engraved Glass Ltd,13971C
Gloucester City Council,23UE,Client Revs & Bens Contract,RT240,Bailiffs Fees,5368,VAT on fees collected,14/07/2015,404560,0,NET,Phoenix Commercial Collections Ltd,13435J
Gloucester City Council,23UE,Client Revs & Bens Contract,RT240,Bailiffs Fees,5368,VAT on fees collected,14/07/2015,404561,0,NET,Phoenix Commercial Collections Ltd,13435J
Gloucester City Council,23UE,Client Revs & Bens Contract,RT240,Bailiffs Fees,5368,VAT ONLY INVOICE,14/07/2015,405014,0,NET,Bristow & Sutor,05450M
Gloucester City Council,23UE,Community Safety Projects,FP500,Basic Pay - Temporary Staff,2751,temporary staff w/e 26/6/15,14/07/2015,404840,463.26,NET,Travail Employment Ltd,49371W
Gloucester City Council,23UE,REDACTED,REDACTED,REDACTED,REDACTED,REDACTED,14/07/2015,REDACTED,1125,NET,REDACTED,REDACTED
Gloucester City Council,23UE,REDACTED,REDACTED,REDACTED,REDACTED,REDACTED,14/07/2015,REDACTED,700,NET,REDACTED,REDACTED
Gloucester City Council,23UE,Contact Centre,RB300,Other Minor Supplies Services,5590,Monthly Fee July 2015,14/07/2015,404552,237.57,NET,Office Response,09439K
Gloucester City Council,23UE,Contact Centre,RB300,Postages,5400,ACCT 0074842000 W/E 20/06,14/07/2015,405074,34.45,NET,Royal Mail S.Wales & South West,35830S
Gloucester City Council,23UE,Corporate Reporting /Financing,RC504,Audit Fees,5383,AUDIT FEE 1,14/07/2015,405023,17993.25,NET,Kpmg,06498X
Gloucester City Council,23UE,Council Streetcare Team,HI101,Other Minor Supplies Services,5590,TAPE,14/07/2015,405068,31.5,NET,Ermin Plant Hire & Services Ltd,14150V
Gloucester City Council,23UE,Countryside Unit,LP201,General Repair/Maint Buildings,3000,Various Items,14/07/2015,404573,16.79,NET,B&Q Trade Account,06346Y
Gloucester City Council,23UE,Crematorium,HC200,General Repair/Maint Buildings,3000,AIR FRESHNER,14/07/2015,404991,1350,NET,Pyramid Hygiene Ltd,01897B
Gloucester City Council,23UE,Crematorium,HC200,Repair/Maint Of Fixed Plant,3006,carbon reagent,14/07/2015,404504,1689.96,NET,Facultatieve Technologies Ltd,51210H
Gloucester City Council,23UE,Crematorium,HC200,Repair/Maint Of Fixed Plant,3006,Carbon Reagent,14/07/2015,404505,1689.96,NET,Facultatieve Technologies Ltd,51210H
Gloucester City Council,23UE,Crematorium,HC200,Repair/Maint Of Fixed Plant,3006,WASTE DRUMS,14/07/2015,405018,1841.31,NET,Facultatieve Technologies Ltd,51210H
Gloucester City Council,23UE,REDACTED,REDACTED,REDACTED,REDACTED,REDACTED,14/07/2015,REDACTED,86,NET,REDACTED,REDACTED
Gloucester City Council,23UE,Development Management,PT200,Microfilming / Cd-Rom Storage,5330,Archival storage June 2015,14/07/2015,404686,27.58,NET,Transmedia Technology Ltd,08635T
Gloucester City Council,23UE,Docks Complex - Catering Servs,RB110,Catering Provisions -Food,5110,FOOD,14/07/2015,405006,17.04,NET,Taynton Farm Foods,09653F
Gloucester City Council,23UE,Docks Complex - Services,RB100,Catering Provisions -Food,5110,FOOD,14/07/2015,405015,59.4,NET,Janes Pantry,24500W
Gloucester City Council,23UE,Docks Complex - Services,RB100,Catering Provisions -Food,5110,FOOD,14/07/2015,405016,68.4,NET,Janes Pantry,24500W
Gloucester City Council,23UE,Docks Complex - Services,RB100,General Repair/Maint Buildings,3000,HERBERT WAREHOUSE,14/07/2015,405072,300,NET,Airvent Systems Limited,51073T
Gloucester City Council,23UE,Docks Complex - Services,RB100,Security Services Fees,5351,AUG15 cash services,14/07/2015,405091,270.81,NET,G4s Cash Solutions (Uk) Ltd,04290V
Gloucester City Council,23UE,Docks Complex - Services,RB100,Trade Refuse Collection,3630,RECYCLING,14/07/2015,405050,210,NET,Archer Recycling,11021G
Gloucester City Council,23UE,Flooding And Drainage,HE306,Maint Of Grounds - General,3030,Porchester Road works,14/07/2015,404564,380,NET,Three Counties Drain Service,44033V
Gloucester City Council,23UE,Folk Museum,LM210,Security Services Fees,5351,AUG15 cash services,14/07/2015,405091,90.64,NET,G4s Cash Solutions (Uk) Ltd,04290V
Gloucester City Council,23UE,General Drainage Works,PY241,Contract Payments,20,SUDBROOK PLP SURVEYS,14/07/2015,405002,10222.9,CAP,Rab Consultants,13415R
Gloucester City Council,23UE,Gloucester Guildhall,LA100,General Repair/Maint Buildings,3000,PAINT,14/07/2015,405001,210.76,NET,Directa Uk Ltd,05387T
Gloucester City Council,23UE,REDACTED,REDACTED,REDACTED,REDACTED,REDACTED,14/07/2015,REDACTED,150.37,NET,REDACTED,REDACTED
Gloucester City Council,23UE,Gloucester Guildhall,LA100,Security Services Fees,5351,AUG15 cash services,14/07/2015,405091,90.64,NET,G4s Cash Solutions (Uk) Ltd,04290V
Gloucester City Council,23UE,REDACTED,REDACTED,REDACTED,REDACTED,REDACTED,14/07/2015,REDACTED,100,NET,REDACTED,REDACTED
Gloucester City Council,23UE,Homelessness,CH120,Fees For Services Received,5350,MEDICAL REPORT,14/07/2015,405049,25.5,NET,Rosebank Health,03041E
Gloucester City Council,23UE,REDACTED,REDACTED,REDACTED,REDACTED,REDACTED,14/07/2015,REDACTED,489.44,NET,REDACTED,REDACTED
Gloucester City Council,23UE,REDACTED,REDACTED,REDACTED,REDACTED,REDACTED,14/07/2015,REDACTED,530,NET,REDACTED,REDACTED
Gloucester City Council,23UE,Investment Property,RB500,General Repair/Maint Buildings,3000,VISIT 04/06/15,14/07/2015,404990,30,NET,Nsgl Ltd,15246Y
Gloucester City Council,23UE,Kings Quarter,RY146,Contract Payments,20,Kings Square paving works,14/07/2015,404551,43024.45,CAP,Talus Construction Ltd,10401G
Gloucester City Council,23UE,Marketing Gloucester Charges,RC433,Fees For Services Received,5350,2015/16 FUNDING,14/07/2015,405028,14912.25,NET,Marketing Gloucester Ltd,08925E
Gloucester City Council,23UE,Marketing Gloucester Charges,RC433,Fees For Services Received,5350,FUNDING 2015/16,14/07/2015,405029,43662.5,NET,Marketing Gloucester Ltd,08925E
Gloucester City Council,23UE,Parks Contract Management,LP100,Maint Of Grounds - General,3030,Abbeymead Skate Park,14/07/2015,404314,1200,NET,Greenfields Garden Services Ltd,48130G
Gloucester City Council,23UE,Parks Contract Management,LP100,Maint Of Grounds - General,3030,Playground Repairs,14/07/2015,404117,146.97,NET,Enterprise (Aol) Ltd,06695G
Gloucester City Council,23UE,Parks Contract Management,LP100,Maint Of Grounds - General,3030,Playground Repairs,14/07/2015,404118,62.64,NET,Enterprise (Aol) Ltd,06695G
Gloucester City Council,23UE,Printing,RP103,Printing,5300,PRINTING,14/07/2015,405033,412,NET,Alpha Colour Printers Ltd,00945B
Gloucester City Council,23UE,Registration Of Electors,RS400,Fees For Services Received,5350,ROOM HIRE,14/07/2015,405053,180,NET,Hempsted Village Hall,55138A
Gloucester City Council,23UE,Retail Market - Landlord,HM300,Operational Equipment <5000,5012,LAMP,14/07/2015,405052,86.9,NET,City Electrical Factors,09325C
Gloucester City Council,23UE,Retail Market - Landlord,HM300,Window Cleaning,3610,Jul-15,14/07/2015,405080,140,NET,Cornwall Cleaning Services,14050A
Gloucester City Council,23UE,Stationery Services,RS150,Printing,5300,STATIONERY,14/07/2015,405034,9.11,NET,Lyreco Uk Ltd,11746G
Gloucester City Council,23UE,Stationery Services,RS150,Stationery,5302,STATIONERY,14/07/2015,405035,22.73,NET,Lyreco Uk Ltd,11746G
Gloucester City Council,23UE,Swrda Property Tfr,RB503,Advertising And Publicity,5702,STONEWORK,14/07/2015,405030,7968.97,NET,Chapter Of Gloucester Cathedral,53250RV
Gloucester City Council,23UE,Theatre Tokens,LT106,Materials For Sale,5080,SALES JUNE 2015,14/07/2015,405077,28.5,NET,Society Of London Theatre,05656Z
Gloucester City Council,23UE,Tic Theatre Ticket Sales,LT107,Materials For Sale,5080,Tall Ships wristbands,14/07/2015,404722,3100.83,NET,Marketing Gloucester Ltd,08925E
Gloucester City Council,23UE,Tourism Marketing,LT100,Other Minor Supplies Services,5590,APR-JUN sanitary disposal,14/07/2015,404874,6.12,NET,Ocs Group Uk Limited T/A Cannon,06506A
Gloucester City Council,23UE,Tourism Marketing,LT100,Security Services Fees,5351,AUG15 cash services,14/07/2015,405091,90.64,NET,G4s Cash Solutions (Uk) Ltd,04290V
Gloucester City Council,23UE,Vehicles,RS140,Fuel,4012,fuel,14/07/2015,405090,170.11,NET,Allstar Business Solutions Ltd (Arval),06594A
Gloucester City Council,23UE,Asset Management,RS300,Safety Equipment,5013,BOOTS,15/07/2015,405067,75,NET,Ermin Plant Hire & Services Ltd,14150V
Gloucester City Council,23UE,Business Transformation & Tech,RT700,Mobile Phones,5409,MOBILE,15/07/2015,404550,98,NET,Everything Everywhere Ltd (T-Mobile),02334V
Gloucester City Council,23UE,Cemeteries,HC300,Basic Pay - Temporary Staff,2751,Temporary staff,15/07/2015,405010,351.9,NET,Premiere Employment Group Ltd,55468Z
Gloucester City Council,23UE,Cemeteries,HC300,Trade Refuse Tipping Fees,6297,GREEN WASTE,15/07/2015,405064,380,NET,Allstone Sand & Gravel Aggregates Ltd,00940M
Gloucester City Council,23UE,Community Safety Projects,FP500,Basic Pay - Temporary Staff,2751,Temporary staff,15/07/2015,405076,559.91,NET,Travail Employment Ltd,49371W
Gloucester City Council,23UE,Council Streetcare Team,HI101,General Repair/Maint Buildings,3000,Woodpecker Road,15/07/2015,404132,90,NET,Severnside Security Ltd,14661M
Gloucester City Council,23UE,Crematorium,HC200,Fertilisers,3029,ROSE,15/07/2015,405019,7.49,NET,Norton Plantaria,53679C
Gloucester City Council,23UE,Crematorium,HC200,Memorial Plaques,5053,BLOCK,15/07/2015,405047,290,NET,The Columbaria Company,55078T
Gloucester City Council,23UE,Crematorium,HC200,Memorial Plaques,5053,PLAQUE,15/07/2015,405020,54.75,NET,Treasured Memories Limited,11058H
Gloucester City Council,23UE,Electrical Investigatory Works,RY142,Contract Payments,20,BOLLARD,15/07/2015,405069,74.04,CAP,Ermin Plant Hire & Services Ltd,14150V
Gloucester City Council,23UE,Emergency Planning,RO100,Fees For Services Received,5350,Secretariat Funding 15/16,15/07/2015,402813,2000,NET,Gloucestershire County Council,18650D
Gloucester City Council,23UE,Financial Services,RT200,Fees For Services Received,5350,Legal Services - Royal Mail,15/07/2015,405226,5000,NET,Mishcon De Reya,15787C
Gloucester City Council,23UE,Green Garden Waste,HI105,Basic Pay - Temporary Staff,2751,Temporary staff,15/07/2015,405221,520.54,NET,One To One Recruitment,04752H
Gloucester City Council,23UE,REDACTED,REDACTED,REDACTED,REDACTED,REDACTED,15/07/2015,REDACTED,588.52,NET,REDACTED,REDACTED
Gloucester City Council,23UE,REDACTED,REDACTED,REDACTED,REDACTED,REDACTED,15/07/2015,REDACTED,631,NET,REDACTED,REDACTED
Gloucester City Council,23UE,Registration Of Electors,RS400,Fees For Services Received,5350,ROOM HIRE 07/05,15/07/2015,403740,100,NET,St Pauls Primary School,56334N
Gloucester City Council,23UE,Solace Project,FP843,Other Minor Supplies Services,5590,ASB April - Jun 2015,15/07/2015,405201,6500,NET,Gloucester City Homes,05244T
Gloucester City Council,23UE,Solace Project,FP843,Other Minor Supplies Services,5590,ASB April - June 2015,15/07/2015,405202,3250,NET,Gloucester City Homes,05244T
Gloucester City Council,23UE,Solace Project,FP843,Other Minor Supplies Services,5590,ASB June 2015,15/07/2015,404492,11844.15,NET,Gloucester City Homes,05244T
Gloucester City Council,23UE,Solace Project,FP843,Other Minor Supplies Services,5590,MARCH 15 ASB SALARY,15/07/2015,405223,1572.57,NET,Gloucester City Homes,05244T
Gloucester City Council,23UE,27-29 Commercial Road,RB542,Advertising And Publicity,5702,27-29 Commercial Road,16/07/2015,404558,1819,NET,Bruton Knowles,57534T
Gloucester City Council,23UE,REDACTED,REDACTED,REDACTED,REDACTED,REDACTED,16/07/2015,REDACTED,200,NET,REDACTED,REDACTED
Gloucester City Council,23UE,Asset Management,RS300,Maint Of Grounds - General,3030,Goal Post Removal - The Park,16/07/2015,405224,390,NET,Mpl Wrought Iron Llp,03907P
Gloucester City Council,23UE,Business Transformation & Tech,RT700,Computer Hardware <5000,5420,Annual Software Support,16/07/2015,404319,1870.66,NET,Northgate Public Services Uk Ltd,08982S
Gloucester City Council,23UE,Business Transformation & Tech,RT700,Computer Hardware <5000,5420,Work Office Connect,16/07/2015,404321,132.09,NET,Northgate Public Services Uk Ltd,08982S
Gloucester City Council,23UE,Client Revs & Bens Contract,RT240,Fees For Services Received,5350,CRN2015/03,16/07/2015,404856,3250,NET,Civica Uk Ltd,10841X
Gloucester City Council,23UE,Client Revs & Bens Contract,RT240,Fees For Services Received,5350,CRN2015-G05,16/07/2015,404857,741.37,NET,Civica Uk Ltd,10841X
Gloucester City Council,23UE,Contact Centre,RB300,Other Minor Supplies Services,5590,Calls June 2015,16/07/2015,405136,56.22,NET,Office Response,09439K
Gloucester City Council,23UE,Council Streetcare Team,HI101,Maint Of Grounds - General,3030,Depot Eastern Avenue Repairs,16/07/2015,405225,250,NET,Mpl Wrought Iron Llp,03907P
Gloucester City Council,23UE,Council Streetcare Team,HI101,Routine R And M - Vehicles,4011,MOT Test and Parts,16/07/2015,405200,95.98,NET,123 Car & Commercial,07651E
Gloucester City Council,23UE,Countryside Unit,LP201,Tyres,4014,LWS,16/07/2015,405025,32.36,NET,Ats Euromaster Ltd,06005E
Gloucester City Council,23UE,Countryside Unit,LP201,Vet Fees,5842,Various Treatments,16/07/2015,405137,283.87,NET,Wood Veterinary Group,48892V
Gloucester City Council,23UE,Development Management,PT200,Advertising And Publicity,5702,Advertisement 03/07/2015,16/07/2015,405218,321.38,NET,Local World Ltd,08556P
Gloucester City Council,23UE,Development Management,PT200,Advertising And Publicity,5702,Advertisement 09/07/2015,16/07/2015,405214,146.08,NET,Local World Ltd,08556P
Gloucester City Council,23UE,Docks Complex - Castlemeads Cp,RB210,Contracted Services,6970,GC Fixed overhead JUNE15,16/07/2015,404685,773.48,NET,Apcoa Parking (Uk) Ltd,09954M
Gloucester City Council,23UE,Docks Complex - Castlemeads Cp,RB210,Contracted Services,6970,GC Variable enforcement JUN15,16/07/2015,404683,454.26,NET,Apcoa Parking (Uk) Ltd,09954M
Gloucester City Council,23UE,Docks Complex - Castlemeads Cp,RB210,Contracted Services,6970,P&D & head cams JUN15,16/07/2015,404679,2096.19,NET,Apcoa Parking (Uk) Ltd,09954M
Gloucester City Council,23UE,Docks Complex - Castlemeads Cp,RB210,Contracted Services,6970,Variable enforcement JUN15,16/07/2015,404684,129.46,NET,Apcoa Parking (Uk) Ltd,09954M
Gloucester City Council,23UE,Grants To Voluntary Sector,FG100,Grants,7100C,Community Grant 2015/16,16/07/2015,405253,1000,NET,Matson & Robinswood Neighbourhood Partnership,28655Z
Gloucester City Council,23UE,Grants To Voluntary Sector,FG100,Grants,7100C,Community Grant 2015/16,16/07/2015,405254,2496,NET,Europa European Alliance Cic,15530V
Gloucester City Council,23UE,Hackney Carriages,HL100,Fees For Services Received,5350,DBS checks JUN15,16/07/2015,404689,396,NET,Disclosure And Barring Service,00119W
Gloucester City Council,23UE,Hempsted Market/Car Boot,HM234,Hire Of Equipment,5020,Repairs,16/07/2015,405215,992,NET,Portable Offices (Hire ) Ltd,06286R
Gloucester City Council,23UE,Homelessness,CH120,Fees For Services Received,5350,Medical Report,16/07/2015,401580,38.5,NET,Partners In Health,06868K
Gloucester City Council,23UE,REDACTED,REDACTED,REDACTED,REDACTED,REDACTED,16/07/2015,REDACTED,588.52,NET,REDACTED,REDACTED
Gloucester City Council,23UE,REDACTED,REDACTED,REDACTED,REDACTED,REDACTED,16/07/2015,REDACTED,625,NET,REDACTED,REDACTED
Gloucester City Council,23UE,Off Street Car Parks,PP110,Contracted Services,6970,GC other items JUN15,16/07/2015,404678,10900.46,NET,Apcoa Parking (Uk) Ltd,09954M
Gloucester City Council,23UE,Off Street Car Parks,PP110,Contracted Services,6970,Variable enforcement JUN15,16/07/2015,404684,4482.41,NET,Apcoa Parking (Uk) Ltd,09954M
Gloucester City Council,23UE,Planning Policy,PT300,Basic Pay -Admin /Prof Staff,2601,Temporary staff,16/07/2015,405032,2282.2,NET,The Oyster Partnership Limited,14900T
Gloucester City Council,23UE,Planning Policy,PT300,Basic Pay -Admin /Prof Staff,2601,Temporary staff,16/07/2015,405040,2402.34,NET,The Oyster Partnership Limited,14900T
Gloucester City Council,23UE,Planning Policy,PT300,Basic Pay -Admin /Prof Staff,2601,Temporary staff,16/07/2015,405041,2238.15,NET,The Oyster Partnership Limited,14900T
Gloucester City Council,23UE,Planning Policy,PT300,Basic Pay -Admin /Prof Staff,2601,Temporary staff,16/07/2015,405031,2124.83,NET,The Oyster Partnership Limited,14900T
Gloucester City Council,23UE,Planning Policy,PT300,Basic Pay -Admin /Prof Staff,2601,Temporary staff,16/07/2015,405042,2290.8,NET,The Oyster Partnership Limited,14900T
Gloucester City Council,23UE,Planning Policy,PT300,Basic Pay -Admin /Prof Staff,2601,Temporary staff,16/07/2015,405058,2414.04,NET,The Oyster Partnership Limited,14900T
Gloucester City Council,23UE,Planning Policy,PT300,Basic Pay -Admin /Prof Staff,2601,Temporary staff,16/07/2015,404718,2188.58,NET,The Oyster Partnership Limited,14900T
Gloucester City Council,23UE,Planning Policy,PT300,Basic Pay -Admin /Prof Staff,2601,Temporary staff,16/07/2015,403847,2096.43,NET,The Oyster Partnership Limited,14900T
Gloucester City Council,23UE,Registration Of Electors,RS400,Fees For Services Received,5350,Advertisement 02/07/2015,16/07/2015,405219,701.18,NET,Local World Ltd,08556P
Gloucester City Council,23UE,Registration Of Electors,RS400,Fees For Services Received,5350,Hire of Centre 07/05/2015,16/07/2015,405196,218.75,NET,Hucclecote Guiding Parent Support Group,15535J
Gloucester City Council,23UE,Registration Of Electors,RS400,Fees For Services Received,5350,Hire of Hall 07/05/2015,16/07/2015,405194,240,NET,Quedgeley Parish Council,48506G
Gloucester City Council,23UE,Registration Of Electors,RS400,Fees For Services Received,5350,Hire of Hall 07/05/2015,16/07/2015,405195,255,NET,Quedgeley Parish Council,48506G
Gloucester City Council,23UE,Registration Of Electors,RS400,Fees For Services Received,5350,Hire of school 07/05/2015,16/07/2015,405133,137.84,NET,Hillview Primary School,12345W
Gloucester City Council,23UE,REDACTED,REDACTED,REDACTED,REDACTED,REDACTED,16/07/2015,REDACTED,160,NET,REDACTED,REDACTED
Gloucester City Council,23UE,Registration Of Electors,RS400,Postages,5400,Ier Mailings & Pol Cards,16/07/2015,405220,2498.75,NET,Royal Mail S.Wales & South West,35830S
Gloucester City Council,23UE,Registration Of Electors,RS400,Postages,5400,Response Plus Service May 15,16/07/2015,405193,0.44,NET,Royal Mail S.Wales & South West,35830S
Gloucester City Council,23UE,Registration Of Electors,RS400,Printing,5300,June IER Mailings,16/07/2015,405197,17.19,NET,Alpha Response Print & Mail Ltd,03029U
Gloucester City Council,23UE,Tic Trading,LT110,Materials For Sale,5080,Various Sauces,16/07/2015,405213,76.8,NET,Kitchen Garden Foods Ltd,15779B
Gloucester City Council,23UE,REDACTED,REDACTED,REDACTED,REDACTED,REDACTED,16/07/2015,REDACTED,724,NET,REDACTED,REDACTED
Gloucester City Council,23UE,Asset Management,RS300,Basic Pay - Temporary Staff,2751,Consultancy Services,17/07/2015,405328,7975,NET,Ardley Associates,09369F
Gloucester City Council,23UE,Business Transformation & Tech,RT700,Computer Hardware <5000,5420,Jun-15,17/07/2015,405075,3948.11,NET,Gamma Business Communications,10260A
Gloucester City Council,23UE,Business Transformation & Tech,RT700,Computer Software <5000,5425,Jun-15,17/07/2015,405070,2109.7,NET,Gamma Business Communications,10260A
Gloucester City Council,23UE,Business Transformation & Tech,RT700,Computer Software Maintenance,5427,Coactiva Software,17/07/2015,384486,6000,NET,Civica Uk Ltd,10841X
Gloucester City Council,23UE,Cemeteries,HC300,Operational Materials,5070,Fan Housing,17/07/2015,405337,54.26,NET,Spaldings,48759Y
Gloucester City Council,23UE,City Museum And Art Gallery,LM200,Advertising And Publicity,5702,Sponsorship Campaign,17/07/2015,405338,3587.5,NET,Soglos,07953J
Gloucester City Council,23UE,City Museum And Art Gallery,LM200,Care Of Collections,5039,KITCHENWARE,17/07/2015,405309,25.36,NET,Nisbets,55372P
Gloucester City Council,23UE,Civica Contract Revs & Bens,RT250,Contracted Services,6970,core revs&bens servicve Aug15,17/07/2015,404878,137322.7,NET,Civica Uk Ltd,10841X
Gloucester City Council,23UE,Civica It Contract,RT270,Contracted Services,6970,IT managed services AUG15,17/07/2015,404879,47916.67,NET,Civica Uk Ltd,10841X
Gloucester City Council,23UE,Contact Centre,RB300,Printing,5300,STATIONERY,17/07/2015,405273,116.4,NET,Lyreco Uk Ltd,11746G
Gloucester City Council,23UE,Contact Centre,RB300,Printing,5300,STATIONERY,17/07/2015,405311,5.92,NET,Lyreco Uk Ltd,11746G
Gloucester City Council,23UE,Contact Centre,RB300,Printing,5300,STATIONERY,17/07/2015,405313,14.98,NET,Lyreco Uk Ltd,11746G
Gloucester City Council,23UE,Contact Centre,RB300,Stationery,5302,STATIONERY,17/07/2015,405310,39.11,NET,Lyreco Uk Ltd,11746G
Gloucester City Council,23UE,Contact Centre,RB300,Stationery,5302,STATIONERY,17/07/2015,405312,14.95,NET,Lyreco Uk Ltd,11746G
Gloucester City Council,23UE,Contact Centre,RB300,Stationery,5302,STATIONERY,17/07/2015,405314,1.5,NET,Lyreco Uk Ltd,11746G
Gloucester City Council,23UE,Contact Centre,RB300,Stationery,5302,STATIONERY,17/07/2015,405315,37.45,NET,Lyreco Uk Ltd,11746G
Gloucester City Council,23UE,Council Streetcare Team,HI101,Maint Of Grounds - General,3030,Traffic Management Costs 17/03/15,17/07/2015,405325,988.2,NET,Enterprise (Aol) Ltd,06695G
Gloucester City Council,23UE,Countryside Unit,LP201,Contract Cleaning,3620,Cleaning June 2015,17/07/2015,405322,130,NET,Cv Fisher Cleaning Services,14907C
Gloucester City Council,23UE,Countryside Unit,LP201,Major R And M - Vehicles,4010,Bracket,17/07/2015,405350,193.1,NET,Loxston Groundcare,14309F
Gloucester City Council,23UE,Crematorium,HC200,Maint Of Grounds - General,3030,Bucket,17/07/2015,405333,195,NET,Jay Bee Plant Sales Ltd,11156L
Gloucester City Council,23UE,Docks Complex - Services,RB100,Fees For Services Received,5350,Oxstalls Lighting,17/07/2015,405335,200,NET,Lean Energy,76824
Gloucester City Council,23UE,General Drainage Works,PY241,Contract Payments,20,Construction of Raingarden,17/07/2015,405353,7535,CAP,Rj Contracting (Environmental) Ltd,07429H
Gloucester City Council,23UE,Gloucester Guildhall,LA100,Cleaning Materials,3600,APR-JUN sanitary disposal,17/07/2015,404875,148.2,NET,Ocs Group Uk Limited T/A Cannon,06506A
Gloucester City Council,23UE,Grants To Voluntary Sector,FG100,Grants,7100C,Festival & Event Grant 2015/16,17/07/2015,405404,500,NET,Podsmead Big Local,14952X
Gloucester City Council,23UE,Green Garden Waste,HI105,Basic Pay - Temporary Staff,2751,temporary staff,17/07/2015,405316,566.47,NET,One To One Recruitment,04752H
Gloucester City Council,23UE,Guildhall Bar And Caf�,LA210,Catering Provisions -Food,5110,Milk,17/07/2015,405361,4.6,NET,Total Produce Gloucester,12645E
Gloucester City Council,23UE,Guildhall Bar And Caf�,LA210,Catering Provisions -Food,5110,Milk,17/07/2015,405362,4.6,NET,Total Produce Gloucester,12645E
Gloucester City Council,23UE,Guildhall Bar And Caf�,LA210,Catering Provisions -Food,5110,Milk,17/07/2015,405363,4.6,NET,Total Produce Gloucester,12645E
Gloucester City Council,23UE,Guildhall Bar And Caf�,LA210,Catering Provisions -Food,5110,Milk,17/07/2015,405364,4.6,NET,Total Produce Gloucester,12645E
Gloucester City Council,23UE,Guildhall Bar And Caf�,LA210,Catering Provisions -Food,5110,Milk,17/07/2015,405365,4.6,NET,Total Produce Gloucester,12645E
Gloucester City Council,23UE,Guildhall Bar And Caf�,LA210,Catering Provisions -Liquor,5111,Drinks,17/07/2015,405340,38.98,NET,Cellar Supplies Cheltenham Ltd,01563L
Gloucester City Council,23UE,Guildhall Bar And Caf�,LA210,Catering Provisions -Liquor,5111,Drinks,17/07/2015,405341,974.14,NET,Cellar Supplies Cheltenham Ltd,01563L
Gloucester City Council,23UE,Guildhall Bar And Caf�,LA210,Catering Provisions -Liquor,5111,Drinks,17/07/2015,405342,1255.6,NET,Cellar Supplies Cheltenham Ltd,01563L
Gloucester City Council,23UE,Guildhall Bar And Caf�,LA210,Catering Provisions -Liquor,5111,Drinks,17/07/2015,405372,40.98,NET,Cellar Supplies Cheltenham Ltd,01563L
Gloucester City Council,23UE,REDACTED,REDACTED,REDACTED,REDACTED,REDACTED,17/07/2015,REDACTED,160,NET,REDACTED,REDACTED
Gloucester City Council,23UE,REDACTED,REDACTED,REDACTED,REDACTED,REDACTED,17/07/2015,REDACTED,44,NET,REDACTED,REDACTED
Gloucester City Council,23UE,Hempsted Market/Car Boot,HM234,Sewerage And Environ Charges,3402,Services Hempsted Meadow,17/07/2015,405336,434.8,NET,Abbey Loos Limited,10787B
Gloucester City Council,23UE,Homelessness,CH120,Fees For Services Received,5350,MEDICAL REPORTS,17/07/2015,405308,35,NET,Now Medical,03468L
Gloucester City Council,23UE,Homelessness,CH120,Fees For Services Received,5350,MEDICAL REPORT,17/07/2015,405319,20.5,NET,Dr P Lush & Partners,05680S
Gloucester City Council,23UE,Homelessness,CH120,Removal And Storage Fees,5513,storage charges,17/07/2015,405263,195.54,NET,Advanced Removals & Storage Ltd,57142R
Gloucester City Council,23UE,Homelessness,CH120,Removal And Storage Fees,5513,storage charges,17/07/2015,405266,23.14,NET,Advanced Removals & Storage Ltd,57142R
Gloucester City Council,23UE,Homelessness,CH120,Removal And Storage Fees,5513,storage charges,17/07/2015,405262,57.86,NET,Advanced Removals & Storage Ltd,57142R
Gloucester City Council,23UE,Homelessness,CH120,Removal And Storage Fees,5513,storage charges,17/07/2015,405264,117.32,NET,Advanced Removals & Storage Ltd,57142R
Gloucester City Council,23UE,Homelessness,CH120,Removal And Storage Fees,5513,storage charges,17/07/2015,405265,39.11,NET,Advanced Removals & Storage Ltd,57142R
Gloucester City Council,23UE,Human Resources,EH100,Fees For Services Received,5350,Training June 2015,17/07/2015,405332,730,NET,The Gold Standard,56141C
Gloucester City Council,23UE,Investment Property,RB500,General Repair/Maint Buildings,3000,Fix Garage Door,17/07/2015,405344,80,NET,Severnside Security Ltd,14661M
Gloucester City Council,23UE,REDACTED,REDACTED,REDACTED,REDACTED,REDACTED,17/07/2015,REDACTED,21,NET,REDACTED,REDACTED
Gloucester City Council,23UE,Matson & Robinswood Play S106,LY151,Contract Payments,20,Tractor & Trailer,17/07/2015,405369,2500,CAP,Sunshine Playgrounds Ltd,14958J
Gloucester City Council,23UE,Off Street Car Parks,PP110,Rents,3200,Rent in Advance June - Sept 2015,17/07/2015,405203,63528.19,NET,Workman Llp,11021M
Gloucester City Council,23UE,Off Street Car Parks,PP110,Service Charges,3020,Rent in Advance June - Sept 2015,17/07/2015,405203,1927.71,NET,Workman Llp,11021M
Gloucester City Council,23UE,Rehousing,CH111,Fees For Services Received,5350,MEDICAL REPORTS,17/07/2015,405308,125,NET,Now Medical,03468L
Gloucester City Council,23UE,Rehousing,CH111,Fees For Services Received,5350,MEDICAL REPORT,17/07/2015,405318,20.5,NET,Dr R Watkins & Partners,59237H
Gloucester City Council,23UE,Rehousing,CH111,Fees For Services Received,5350,MEDICAL REPORT,17/07/2015,405320,20.5,NET,Hadwen Medical Practice,59727U
Gloucester City Council,23UE,Tourism Marketing,LT100,Window Cleaning,3610,Window Cleaning May - Jun 2015,17/07/2015,405346,12,NET,Interserve Fs (Uk) Limited,00442K
Gloucester City Council,23UE,Aspire Admin Charges,LC105,Fees For Services Received,5350,May 2015 Memberships,20/07/2015,404315,435,NET,Aspire Sports & Cultural Trust,08135V
Gloucester City Council,23UE,Asset Management,RS300,Maint Of Grounds - General,3030,Works - The Moat Quedgeley,20/07/2015,405216,110,NET,Cotswold Drain Services,04496W
Gloucester City Council,23UE,Cems/Crems Admin,HC100,Security Services Fees,5351,Services June 2015,20/07/2015,405368,14.11,NET,G4s Cash Solutions (Uk) Ltd,04290V
Gloucester City Council,23UE,Client Revs & Bens Contract,RT240,Bailiffs Fees,5368,VAT due on fees,20/07/2015,405345,293.09,NET,Bristow & Sutor,05450M
Gloucester City Council,23UE,Client Revs & Bens Contract,RT240,Bailiffs Fees,5368,VAT on fees collected,20/07/2015,405329,0,NET,Phoenix Commercial Collections Ltd,13435J
Gloucester City Council,23UE,Client Revs & Bens Contract,RT240,Bailiffs Fees,5368,VAT on fees collected,20/07/2015,405330,0,NET,Phoenix Commercial Collections Ltd,13435J
Gloucester City Council,23UE,Client Revs & Bens Contract,RT240,Bailiffs Fees,5368,VAT on fees collected,20/07/2015,405331,0,NET,Phoenix Commercial Collections Ltd,13435J
Gloucester City Council,23UE,REDACTED,REDACTED,REDACTED,REDACTED,REDACTED,20/07/2015,REDACTED,47.75,NET,REDACTED,REDACTED
Gloucester City Council,23UE,Development Management,PT200,Microfilming / Cd-Rom Storage,5330,Invoice 85824 - Difference in amount,20/07/2015,405406,19.82,NET,Transmedia Technology Ltd,08635T
Gloucester City Council,23UE,Docks Complex - Services,RB100,Security Services Fees,5351,Services June 2015,20/07/2015,405368,3.53,NET,G4s Cash Solutions (Uk) Ltd,04290V
Gloucester City Council,23UE,REDACTED,REDACTED,REDACTED,REDACTED,REDACTED,20/07/2015,REDACTED,169,NET,REDACTED,REDACTED
Gloucester City Council,23UE,Gloucester Guildhall,LA100,Hire Of Equipment,5020,Technic Turntables,20/07/2015,402612,48,NET,Unique Sound Systems,59571S
Gloucester City Council,23UE,Licences,HE510,Vocational Training,2970,Training Day 07/07/2015,20/07/2015,405324,45,NET,The Institute Of Licensing (Events) Ltd,10855K
Gloucester City Council,23UE,S106 Hempsted Way Play Area,LY156,Contract Payments,20,HEMPSTED WAY,20/07/2015,405276,1842,CAP,Greenfields Garden Services Ltd,48130G
Gloucester City Council,23UE,The Arbor,HC501,Catering Provisions -Food,5110,food,20/07/2015,404861,150.84,NET,Janes Pantry,24500W
Gloucester City Council,23UE,The Arbor,HC501,Catering Provisions -Food,5110,Food w/e 21/06/2015,20/07/2015,404384,192.64,NET,Janes Pantry,24500W
Gloucester City Council,23UE,The Arbor,HC501,Cleaning Materials,3600,Cleaning Materials,20/07/2015,404331,52.2,NET,Core Hygiene Ltd,03885P
Gloucester City Council,23UE,Utilities,PT502,Electricity Supply,3110,UTILITES TO JULY 2015,20/07/2015,405272,13344.09,NET,West Mercia Energy,11669Z
Gloucester City Council,23UE,Utilities,PT502,Gas Supply,3100,UTILITES TO JULY 2015,20/07/2015,405272,287.2,NET,West Mercia Energy,11669Z
Gloucester City Council,23UE,Blackfriars,LA609,Contract Cleaning,3620,cover cleaning June 2015,21/07/2015,404501,455,NET,Into Cleaning,14609P
Gloucester City Council,23UE,Building Control,PT400,Basic Pay - Temporary Staff,2751,Temporary staff,21/07/2015,404171,1662.3,NET,The Oyster Partnership Limited,14900T
Gloucester City Council,23UE,Building Control,PT400,Basic Pay - Temporary Staff,2751,Temporary staff,21/07/2015,404104,1700.25,NET,The Oyster Partnership Limited,14900T
Gloucester City Council,23UE,Building Control,PT400,Basic Pay - Temporary Staff,2751,Temporary staff,21/07/2015,404300,1650.2,NET,The Oyster Partnership Limited,14900T
Gloucester City Council,23UE,Business Planning & Performanc,RL500,Fees For Services Received,5350,ROOM HIRE 24/06/15,21/07/2015,405274,400,NET,Aspire Sports & Cultural Trust,08135V
Gloucester City Council,23UE,Business Transformation & Tech,RT700,Computer Hardware <5000,5420,Lattitude 14 Rugged,21/07/2015,404692,1021.35,NET,Dell Computers Corporation Ltd,55920C
Gloucester City Council,23UE,Business Transformation & Tech,RT700,Mobile Phones,5409,ACCT 78441964/8,21/07/2015,403745,79.74,NET,Everything Everywhere Ltd (T-Mobile),57543S
Gloucester City Council,23UE,Business Transformation & Tech,RT700,Mobile Phones,5409,May-15,21/07/2015,403741,2013.89,NET,Everything Everywhere Ltd (T-Mobile),57543S
Gloucester City Council,23UE,Civica Admin Charges,RT105,Fees For Services Received,5350,Subscription Advance June 2015,21/07/2015,405198,4,NET,Companies House,58954E
Gloucester City Council,23UE,Civica Admin Charges,RT105,Postages,5400,acct 0870585007 JUN15,21/07/2015,404881,1584.38,NET,Royal Mail S.Wales & South West,35830S
Gloucester City Council,23UE,Crematorium,HC200,Cleaning Materials,3600,Jul-15,21/07/2015,405013,17.28,NET,Minster Cleaning Services,02158R
Gloucester City Council,23UE,Docks Complex - Services,RB100,Cleaning Materials,3600,cleaning materials,21/07/2015,404870,130.87,NET,Core Hygiene Ltd,03885P
Gloucester City Council,23UE,Docks Complex - Services,RB100,Cleaning Materials,3600,Cleaning Materials,21/07/2015,405199,108.34,NET,Core Hygiene Ltd,03885P
Gloucester City Council,23UE,Folk Museum,LM210,Sewerage And Environ Charges,3402,Folk Museum sanitary waste APR-JUN15,21/07/2015,404885,18.33,NET,Ocs Group Uk Limited T/A Cannon,06506A
Gloucester City Council,23UE,Green Garden Waste,HI105,Fees For Services Received,5350,GARDEN WASTE CONNECTOR,21/07/2015,405271,950,NET,Ash Information Systems Ltd,54890V
Gloucester City Council,23UE,REDACTED,REDACTED,REDACTED,REDACTED,REDACTED,21/07/2015,REDACTED,27,NET,REDACTED,REDACTED
Gloucester City Council,23UE,REDACTED,REDACTED,REDACTED,REDACTED,REDACTED,21/07/2015,REDACTED,27,NET,REDACTED,REDACTED
Gloucester City Council,23UE,REDACTED,REDACTED,REDACTED,REDACTED,REDACTED,21/07/2015,REDACTED,400,NET,REDACTED,REDACTED
Gloucester City Council,23UE,Planning Policy,PT300,Basic Pay -Admin /Prof Staff,2601,Temporary staff,21/07/2015,405060,2100.87,NET,The Oyster Partnership Limited,14900T
Gloucester City Council,23UE,Planning Policy,PT300,Basic Pay -Admin /Prof Staff,2601,Temporary staff,21/07/2015,405059,2104.29,NET,The Oyster Partnership Limited,14900T
Gloucester City Council,23UE,Cctv Revenue Budget,FP501,Security Equipment Serv/Repair,3038,CCTV maintenance - Friendship Cafe,22/07/2015,404845,100,NET,Eurolink Security & Technology Group,05166M
Gloucester City Council,23UE,Community Strat & Engagement,FP100,Fees For Services Received,5350,Annual Contributions - MAIDeN,22/07/2015,405334,10000,NET,Gloucestershire County Council,18650D
Gloucester City Council,23UE,Dwelling Improvements,BY008,Contract Payments,20,Capital Fee March 2015,22/07/2015,405323,397278.15,CAP,Gloucester City Homes,05244T
Gloucester City Council,23UE,Equalities,EH102,Fees For Services Received,5350,Generator for May Fair,22/07/2015,405349,50,NET,Ru Electrical Services,10389U
Gloucester City Council,23UE,General Drainage Works,PY241,Contract Payments,20,Various Items,22/07/2015,405211,727,CAP,Fitzpatrick Woolmer Design & Publishing Ltd,04091D
Gloucester City Council,23UE,Guildhall Events,LA200,Advertising And Publicity,5702,Advertisement 22/05/2015,22/07/2015,405327,400,NET,Local World Ltd,08556P
Gloucester City Council,23UE,Guildhall Events,LA200,Advertising And Publicity,5702,Advertisement 26/06/2015,22/07/2015,405326,400,NET,Local World Ltd,08556P
Gloucester City Council,23UE,Guildhall Events,LA200,Fees For Services Received,5350,Months News -June 2015,22/07/2015,405343,28.65,NET,W H Smith Ltd,40860M
Gloucester City Council,23UE,Council Streetcare Team,HI101,General Repair/Maint Buildings,3000,CLOCK TOWER PARK,23/07/2015,405275,294,NET,Greenfields Garden Services Ltd,48130G
Gloucester City Council,23UE,Council Streetcare Team,HI101,Maint Of Grounds - General,3030,Gloucester Park - Grass Seed,23/07/2015,401796,990,NET,Greenfields Garden Services Ltd,48130G
Gloucester City Council,23UE,Council Streetcare Team,HI101,Maint Of Grounds - General,3030,ST JAMES PARK,23/07/2015,405317,84,NET,Greenfields Garden Services Ltd,48130G
Gloucester City Council,23UE,Council Streetcare Team,HI101,Maint Of Paths/Hardstandings,3056,PLOCK COURT,23/07/2015,405268,394,NET,Greenfields Garden Services Ltd,48130G
Gloucester City Council,23UE,Daniels Brook S106,LY120,Contract Payments,20,DANIELS BROOK,23/07/2015,405269,4940,CAP,Greenfields Garden Services Ltd,48130G
Gloucester City Council,23UE,Grants To Voluntary Sector,FG100,Grants,7100C,Community Grant 2015/16,23/07/2015,405439,2000,NET,Churches For Change,14084G
Gloucester City Council,23UE,Grants To Voluntary Sector,FG100,Grants,7100C,Festival & Events Grant 2015/16,23/07/2015,405440,1000,NET,Churches For Change,14084G
Gloucester City Council,23UE,Grants To Voluntary Sector,FG100,Grants,7100C,Festival & Events Grant 2015/16,23/07/2015,405441,320,NET,Gloucester Fm,56154T
Gloucester City Council,23UE,Grants To Voluntary Sector,FG100,Grants,7100C,Festival & Events Grant 2015/16,23/07/2015,405442,805,NET,Roots Cic,15363P
Gloucester City Council,23UE,Grants To Voluntary Sector,FG100,Grants,7100C,Festival & Events Grant 2015/16,23/07/2015,405443,407,NET,Gloucestershire Chinese Community Group,18640G
Gloucester City Council,23UE,REDACTED,REDACTED,REDACTED,REDACTED,REDACTED,23/07/2015,REDACTED,368.2,NET,REDACTED,REDACTED
Gloucester City Council,23UE,REDACTED,REDACTED,REDACTED,REDACTED,REDACTED,23/07/2015,REDACTED,400,NET,REDACTED,REDACTED
Gloucester City Council,23UE,REDACTED,REDACTED,REDACTED,REDACTED,REDACTED,23/07/2015,REDACTED,21,NET,REDACTED,REDACTED
Gloucester City Council,23UE,Client Revs & Bens Contract,RT240,Computer Hardware Maintenance,5426,chip 7 pin reader repairs 13/4/15,24/07/2015,404872,1309.96,NET,Banking Automation Ltd,10352U
Gloucester City Council,23UE,Countryside Unit,LP201,Tyres,4014,Mud Gear,24/07/2015,404510,100,NET,Ats Euromaster Ltd,59598V
Gloucester City Council,23UE,Disabled Facilities Grants,CY013,Disabled Facility Grants,74,DFG MDF5086 FINAL FEE,24/07/2015,405475,9420,CAP,Longlevens Building & Roofing Ltd,02837L
Gloucester City Council,23UE,Disabled Facilities Grants,CY013,Disabled Facility Grants,74,DFG MDF5105,24/07/2015,405471,7112.19,CAP,Mears Home Improvement Ltd,00096G
Gloucester City Council,23UE,Disabled Facilities Grants,CY013,Disabled Facility Grants,74,DFG MDF5139 INTERIM FEE,24/07/2015,405473,10325,CAP,Tpg Disableaids,51324R
Gloucester City Council,23UE,Disabled Facilities Grants,CY013,Disabled Facility Grants,74,DFG MDF5142 FINAL,24/07/2015,405472,6292.37,CAP,Mears Home Improvement Ltd,00096G
Gloucester City Council,23UE,Disabled Facilities Grants,CY013,Disabled Facility Grants,74,DFG MDF5147 FINAL FEE,24/07/2015,405474,4445,CAP,Tpg Disableaids,51324R
Gloucester City Council,23UE,Disabled Facilities Grants,CY013,Disabled Facility Grants,74,mdf5116 final payment,24/07/2015,405470,6082.91,CAP,Mears Home Improvement Ltd,00096G
Gloucester City Council,23UE,Innsworth Lane Sports Pitches,LY079,Contract Payments,20,Various Items,24/07/2015,405339,689,CAP,Centrewire Ltd,54156P
Gloucester City Council,23UE,Parks Contract Management,LP100,Maint Of Grounds - General,3030,Playground repairs,24/07/2015,404595,258.98,NET,Enterprise (Aol) Ltd,06695G
Gloucester City Council,23UE,Planning Policy,PT300,Basic Pay - Temporary Staff,2751,Temporary staff,24/07/2015,403832,31.22,NET,Randstad Cpe Ltd,13987L
Gloucester City Council,23UE,Building Control,PT400,Basic Pay - Temporary Staff,2751,Temporary staff,27/07/2015,404717,1445.15,NET,The Oyster Partnership Limited,14900T
Gloucester City Council,23UE,Environmental Planning,LM340,Operational Materials,5070,Various Items,27/07/2015,405212,144.5,NET,Fitzpatrick Woolmer Design & Publishing Ltd,04091D
Gloucester City Council,23UE,Gloucester Partnership,FP106,Other Minor Supplies Services,5590,Glos Partnership,27/07/2015,405515,995,NET,Icon.Net,52505Z
Gloucester City Council,23UE,Guildhall Bar And Caf�,LA210,Catering Provisions -Liquor,5111,suremix & suregas rental,27/07/2015,404873,25.15,NET,Boc Ltd,59172L
Gloucester City Council,23UE,Guildhall Cinema,LA202,Fees For Services Received,5350,Jul-15,27/07/2015,405073,219.59,NET,Nft Logistics Ltd,13505N
Gloucester City Council,23UE,REDACTED,REDACTED,REDACTED,REDACTED,REDACTED,27/07/2015,REDACTED,80,NET,REDACTED,REDACTED
Gloucester City Council,23UE,Building Control,PT400,Basic Pay - Temporary Staff,2751,Temporary staff,28/07/2015,405043,1690.3,NET,The Oyster Partnership Limited,14900T
Gloucester City Council,23UE,Council Streetcare Team,HI101,Maint Of Grounds - General,3030,bird seed,28/07/2015,405594,98.08,NET,Angell Pets Ltd,15773P
Gloucester City Council,23UE,Grants To Voluntary Sector,FG100,Grants,7100C,Festival & Event Grant 2015/16,28/07/2015,405586,984,NET,Play Gloucestershire,07251S
Gloucester City Council,23UE,Grants To Voluntary Sector,FG100,Grants,7100C,Festival & Events Grant 2015/16,28/07/2015,405585,1000,NET,Kingfisher Treasure Seekers Ltd,15209B
Gloucester City Council,23UE,REDACTED,REDACTED,REDACTED,REDACTED,REDACTED,28/07/2015,REDACTED,207.29,NET,REDACTED,REDACTED
Gloucester City Council,23UE,REDACTED,REDACTED,REDACTED,REDACTED,REDACTED,28/07/2015,REDACTED,53.13,NET,REDACTED,REDACTED
Gloucester City Council,23UE,Homelessness,CH120,Board And Lodging,5515,various tenants,28/07/2015,405589,399.45,NET,Kalmwood Ltd,08568G
Gloucester City Council,23UE,Homelessness,CH120,Board And Lodging,5515,various tenants,28/07/2015,405588,1506.68,NET,Carbrey Housing Ltd,11098G
Gloucester City Council,23UE,Homelessness,CH120,Board And Lodging,5515,various tenants,28/07/2015,405592,755.82,NET,Dorchester Guest House,12298D
Gloucester City Council,23UE,REDACTED,REDACTED,REDACTED,REDACTED,REDACTED,28/07/2015,REDACTED,1798.56,NET,REDACTED,REDACTED
Gloucester City Council,23UE,REDACTED,REDACTED,REDACTED,REDACTED,REDACTED,28/07/2015,REDACTED,2671.13,NET,REDACTED,REDACTED
Gloucester City Council,23UE,REDACTED,REDACTED,REDACTED,REDACTED,REDACTED,28/07/2015,REDACTED,533.63,NET,REDACTED,REDACTED
Gloucester City Council,23UE,REDACTED,REDACTED,REDACTED,REDACTED,REDACTED,28/07/2015,REDACTED,1611.99,NET,REDACTED,REDACTED
Gloucester City Council,23UE,The Arbor,HC501,Catering Provisions -Food,5110,Food,28/07/2015,405579,81.64,NET,Total Produce Gloucester,12645E
Gloucester City Council,23UE,The Arbor,HC501,Catering Provisions -Food,5110,Food,28/07/2015,405580,23.3,NET,Total Produce Gloucester,12645E
Gloucester City Council,23UE,The Arbor,HC501,Catering Provisions -Food,5110,Food,28/07/2015,405581,42.72,NET,Total Produce Gloucester,12645E
Gloucester City Council,23UE,The Arbor,HC501,Catering Provisions -Food,5110,Food,28/07/2015,405582,32.59,NET,Total Produce Gloucester,12645E
Gloucester City Council,23UE,The Arbor,HC501,Catering Provisions -Food,5110,Food,28/07/2015,405595,53.43,NET,Total Produce Gloucester,12645E
Gloucester City Council,23UE,The Arbor,HC501,Catering Provisions -Food,5110,Food,28/07/2015,405596,39.19,NET,Total Produce Gloucester,12645E
Gloucester City Council,23UE,The Arbor,HC501,Catering Provisions -Food,5110,Food,28/07/2015,405597,41.32,NET,Total Produce Gloucester,12645E
Gloucester City Council,23UE,The Arbor,HC501,Catering Provisions -Food,5110,Food,28/07/2015,405598,15.98,NET,Total Produce Gloucester,12645E
Gloucester City Council,23UE,The Arbor,HC501,Catering Provisions -Food,5110,Food,28/07/2015,405599,98.63,NET,Total Produce Gloucester,12645E
Gloucester City Council,23UE,The Arbor,HC501,Catering Provisions -Food,5110,Food,28/07/2015,405600,9.51,NET,Total Produce Gloucester,12645E
Gloucester City Council,23UE,The Arbor,HC501,Catering Provisions -Food,5110,Food,28/07/2015,405610,257.4,NET,3663,55585U
Gloucester City Council,23UE,The Arbor,HC501,Catering Provisions -Food,5110,Food,28/07/2015,405611,106.9,NET,3663,55585U
Gloucester City Council,23UE,The Arbor,HC501,Catering Provisions -Food,5110,Food,28/07/2015,405612,170.65,NET,3663,55585U
Gloucester City Council,23UE,The Arbor,HC501,Catering Provisions -Food,5110,Food,28/07/2015,405613,419.83,NET,3663,55585U
Gloucester City Council,23UE,The Arbor,HC501,Catering Provisions -Food,5110,Food,28/07/2015,405623,130,NET,3663,55585U
Gloucester City Council,23UE,The Arbor,HC501,Cleaning Materials,3600,Food,28/07/2015,405614,88.77,NET,3663,55585U
Gloucester City Council,23UE,The Arbor,HC501,Cleaning Materials,3600,Food,28/07/2015,405615,59.34,NET,3663,55585U
Gloucester City Council,23UE,Allotments,HI104,Water Supply,3400,ACCT 7890105225,29/07/2015,403997,163.63,NET,Severn Trent Water,01823H
Gloucester City Council,23UE,Bus Station,RB400,Water Supply,3400,ACCT 7890105225,29/07/2015,403997,180.44,NET,Severn Trent Water,01823H
Gloucester City Council,23UE,Council Streetcare Team,HI101,Water Supply,3400,ACCT 7890105225,29/07/2015,403997,111.24,NET,Severn Trent Water,01823H
Gloucester City Council,23UE,Crematorium,HC200,"Seeds, Trees, Plants, Shrubs",3028,Roses,29/07/2015,405359,855.2,NET,Genus Plant Sourcing,14143S
Gloucester City Council,23UE,Crematorium,HC200,Water Supply,3400,ACCT 7890105225,29/07/2015,403997,40.21,NET,Severn Trent Water,01823H
Gloucester City Council,23UE,Daniels Brook S106,LY120,Contract Payments,20,Daniels Brook - Wooden Carvings,29/07/2015,405564,1400,CAP,D R Howse Services,13597E
Gloucester City Council,23UE,Grants To Voluntary Sector,FG100,Grants,7100C,Community Grant 2015/16,29/07/2015,405722,1183,NET,Barnwood Community Partnership,14234M
Gloucester City Council,23UE,Guildhall Bar And Caf�,LA210,Catering Provisions -Food,5110,Milk,29/07/2015,405562,4.6,NET,Total Produce Gloucester,12645E
Gloucester City Council,23UE,Guildhall Bar And Caf�,LA210,Catering Provisions -Food,5110,Milk,29/07/2015,405563,4.6,NET,Total Produce Gloucester,12645E
Gloucester City Council,23UE,Investment Property,RB500,Water Supply,3400,ACCT 7890105225,29/07/2015,403997,321.65,NET,Severn Trent Water,01823H
Gloucester City Council,23UE,Off Street Car Parks,PP110,Water Supply,3400,ACCT 7890105225,29/07/2015,403997,1807.7,NET,Severn Trent Water,01823H
Gloucester City Council,23UE,Public Conveniences (Client),HI400,Water Supply,3400,ACCT 7890105225,29/07/2015,403997,180.44,NET,Severn Trent Water,01823H
Gloucester City Council,23UE,Robinswood Hlf Archaeology,RY217,Contract Payments,20,Excavation Support July 15,29/07/2015,405570,1006.5,CAP,A J Roberts T/A Archeoscan,14562R
Gloucester City Council,23UE,The Arbor,HC501,Catering Provisions -Food,5110,Food,29/07/2015,405578,355.52,NET,3663,55585U
Gloucester City Council,23UE,The Arbor,HC501,Catering Provisions -Food,5110,Food,29/07/2015,405616,295.7,NET,3663,55585U
Gloucester City Council,23UE,The Arbor,HC501,Catering Provisions -Food,5110,Food,29/07/2015,405617,234.37,NET,3663,55585U
Gloucester City Council,23UE,The Arbor,HC501,Catering Provisions -Food,5110,Food,29/07/2015,405618,125.3,NET,3663,55585U
Gloucester City Council,23UE,The Arbor,HC501,Catering Provisions -Food,5110,Food w/e 05/07/2015,29/07/2015,405204,123.7,NET,Janes Pantry,24500W
Gloucester City Council,23UE,The Arbor,HC501,Catering Provisions -Food,5110,Food w/e 12/07/2015,29/07/2015,405210,51.4,NET,Janes Pantry,24500W
Gloucester City Council,23UE,The Arbor,HC501,Catering Provisions -Liquor,5111,Drinks,29/07/2015,405565,216.88,NET,Cellar Supplies Cheltenham Ltd,01563L
Gloucester City Council,23UE,The Arbor,HC501,Catering Provisions -Liquor,5111,Drinks,29/07/2015,405566,341.4,NET,Cellar Supplies Cheltenham Ltd,01563L
Gloucester City Council,23UE,The Arbor,HC501,Other Minor Supplies Services,5590,Flowers,29/07/2015,405574,51.8,NET,Carols Florist,01274X
Gloucester City Council,23UE,The Arbor,HC501,Other Minor Supplies Services,5590,Flowers,29/07/2015,405575,34.8,NET,Carols Florist,01274X
Gloucester City Council,23UE,The Arbor,HC501,Other Minor Supplies Services,5590,Flowers,29/07/2015,405576,39.8,NET,Carols Florist,01274X
Gloucester City Council,23UE,Utilities,PT502,Electricity Supply,3110,ROBINSWOOD HILL,29/07/2015,405727,150.95,NET,Npower,03929V
Gloucester City Council,23UE,Utilities,PT502,Electricity Supply,3110,ROBINSWOOD HILL,29/07/2015,405728,1052.77,NET,Npower,03929V
Gloucester City Council,23UE,Asset Management,RS300,Basic Pay - Temporary Staff,2751,Engineer Services June 2015,30/07/2015,405573,5825.85,NET,Ecostep Ltd,15511Z
Gloucester City Council,23UE,Blackfriars,LA609,Hire Of Equipment,5020,Tables July 2015,30/07/2015,405496,107.5,NET,Valley Furniture Hire Ltd,08324P
Gloucester City Council,23UE,Cctv Revenue Budget,FP501,Security Equipment Serv/Repair,3038,Charges Jul - Sep 2015,30/07/2015,405355,11748.44,NET,Bt Redcare,04692U
Gloucester City Council,23UE,Civica Admin Charges,RT105,Postages,5400,Post 29/06 - 10/07 2015,30/07/2015,405555,1379.87,NET,Royal Mail S.Wales & South West,35830S
Gloucester City Council,23UE,Contact Centre,RB300,Postages,5400,Post 26/06 - 09/07 2015,30/07/2015,405551,1125.36,NET,Royal Mail S.Wales & South West,35830S
Gloucester City Council,23UE,Green Garden Waste,HI105,Basic Pay - Temporary Staff,2751,Temporary staff,30/07/2015,405561,566.47,NET,One To One Recruitment,04752H
Gloucester City Council,23UE,REDACTED,REDACTED,REDACTED,REDACTED,REDACTED,30/07/2015,REDACTED,240,NET,REDACTED,REDACTED
Gloucester City Council,23UE,REDACTED,REDACTED,REDACTED,REDACTED,REDACTED,30/07/2015,REDACTED,3494,NET,REDACTED,REDACTED
Gloucester City Council,23UE,REDACTED,REDACTED,REDACTED,REDACTED,REDACTED,30/07/2015,REDACTED,350,NET,REDACTED,REDACTED
Gloucester City Council,23UE,REDACTED,REDACTED,REDACTED,REDACTED,REDACTED,30/07/2015,REDACTED,520,NET,REDACTED,REDACTED
Gloucester City Council,23UE,Investment Property,RB500,General Repair/Maint Buildings,3000,Glos City Museum - Checks,30/07/2015,405567,110,NET,Three Counties Drain Service,44033V
Gloucester City Council,23UE,Matson & Robinswood Play S106,LY151,Contract Payments,20,Excavate area for baseworks,30/07/2015,405490,4950,CAP,Landscape To Play Ltd,09116P
Gloucester City Council,23UE,Members Support,RC300,Members Training,5535,Public Speaking Course,30/07/2015,405489,80,NET,Conservative Councillors Association,03312W
Gloucester City Council,23UE,Planning Policy,PT300,Vocational Training,2970,Seminar,30/07/2015,405488,100,NET,National Retail Planning Forum,15774M
Gloucester City Council,23UE,Taxi Marshalling Scheme,HL101,Taxi Marshals,5387,TAXI MARSHALLS,30/07/2015,396009,172.5,NET,Cuff Security Services Ltd,12073G
Gloucester City Council,23UE,Taxi Marshalling Scheme,HL101,Taxi Marshals,5387,Taxi Marshalls 10 & 11 April 2015,30/07/2015,405497,161,NET,Cuff Security Services Ltd,12073G
Gloucester City Council,23UE,Taxi Marshalling Scheme,HL101,Taxi Marshals,5387,Taxi Marshalls 12 & 13 June 2015,30/07/2015,405504,172.5,NET,Cuff Security Services Ltd,12073G
Gloucester City Council,23UE,Taxi Marshalling Scheme,HL101,Taxi Marshals,5387,Taxi Marshalls 1 & 2 May 2015,30/07/2015,405505,172.5,NET,Cuff Security Services Ltd,12073G
Gloucester City Council,23UE,Taxi Marshalling Scheme,HL101,Taxi Marshals,5387,Taxi Marshalls 15 & 16 May 2015,30/07/2015,405502,172.5,NET,Cuff Security Services Ltd,12073G
Gloucester City Council,23UE,Taxi Marshalling Scheme,HL101,Taxi Marshals,5387,Taxi Marshalls 17 & 18 April 2015,30/07/2015,405501,126.5,NET,Cuff Security Services Ltd,12073G
Gloucester City Council,23UE,Taxi Marshalling Scheme,HL101,Taxi Marshals,5387,Taxi Marshalls 19 & 20 June 2015,30/07/2015,405507,172.5,NET,Cuff Security Services Ltd,12073G
Gloucester City Council,23UE,Taxi Marshalling Scheme,HL101,Taxi Marshals,5387,Taxi Marshalls 22 & 23 May 2015,30/07/2015,405506,172.5,NET,Cuff Security Services Ltd,12073G
Gloucester City Council,23UE,Taxi Marshalling Scheme,HL101,Taxi Marshals,5387,Taxi Marshalls 24 & 25 April 2015,30/07/2015,405500,172.5,NET,Cuff Security Services Ltd,12073G
Gloucester City Council,23UE,Taxi Marshalling Scheme,HL101,Taxi Marshals,5387,Taxi Marshalls 26 & 27 June 2015,30/07/2015,405508,172.5,NET,Cuff Security Services Ltd,12073G
Gloucester City Council,23UE,Taxi Marshalling Scheme,HL101,Taxi Marshals,5387,Taxi Marshalls 29 & 30 May 2015,30/07/2015,405499,172.5,NET,Cuff Security Services Ltd,12073G
Gloucester City Council,23UE,Taxi Marshalling Scheme,HL101,Taxi Marshals,5387,Taxi Marshalls 5 & 6 June 2015,30/07/2015,405503,172.5,NET,Cuff Security Services Ltd,12073G
Gloucester City Council,23UE,Taxi Marshalling Scheme,HL101,Taxi Marshals,5387,Taxi Marshalls 8 & 9 May 2015,30/07/2015,405498,172.5,NET,Cuff Security Services Ltd,12073G
Gloucester City Council,23UE,The Arbor,HC501,Catering Provisions -Food,5110,Food,30/07/2015,405601,13.7,NET,Total Produce Gloucester,12645E
Gloucester City Council,23UE,The Arbor,HC501,Catering Provisions -Food,5110,Food,30/07/2015,405602,43.41,NET,Total Produce Gloucester,12645E
Gloucester City Council,23UE,The Arbor,HC501,Catering Provisions -Food,5110,Food,30/07/2015,405603,22.51,NET,Total Produce Gloucester,12645E
Gloucester City Council,23UE,The Arbor,HC501,Catering Provisions -Food,5110,Food,30/07/2015,405605,17.52,NET,Total Produce Gloucester,12645E
Gloucester City Council,23UE,The Arbor,HC501,Catering Provisions -Food,5110,Food,30/07/2015,405606,42.36,NET,Total Produce Gloucester,12645E
Gloucester City Council,23UE,The Arbor,HC501,Catering Provisions -Food,5110,Food,30/07/2015,405607,17.46,NET,Total Produce Gloucester,12645E
Gloucester City Council,23UE,The Arbor,HC501,Catering Provisions -Food,5110,Food,30/07/2015,405608,4.96,NET,Total Produce Gloucester,12645E
Gloucester City Council,23UE,The Arbor,HC501,Catering Provisions -Food,5110,Food,30/07/2015,405609,44.67,NET,Total Produce Gloucester,12645E
Gloucester City Council,23UE,The Arbor,HC501,Operational Equipment <5000,5012,Various Items,30/07/2015,403038,558.35,NET,Nisbets,55372P
Gloucester City Council,23UE,Vehicles,RS140,Fuel,4012,Fuel,30/07/2015,405550,117.64,NET,Allstar Business Solutions Ltd (Arval),06594A
Gloucester City Council,23UE,REDACTED,REDACTED,REDACTED,REDACTED,REDACTED,31/07/2015,REDACTED,195,NET,REDACTED,REDACTED
Gloucester City Council,23UE,Disabled Facilities Grants,CY013,Disabled Facility Grants,74,Disabled Facility Grant,31/07/2015,405783,310.08,CAP,Mears Home Improvement Ltd,00096G
Gloucester City Council,23UE,Disabled Facilities Grants,CY013,Disabled Facility Grants,74,Disabled Facility Grant,31/07/2015,405784,2380.07,CAP,Mears Home Improvement Ltd,00096G
Gloucester City Council,23UE,REDACTED,REDACTED,REDACTED,REDACTED,REDACTED,31/07/2015,REDACTED,368.2,NET,REDACTED,REDACTED
Gloucester City Council,23UE,REDACTED,REDACTED,REDACTED,REDACTED,REDACTED,31/07/2015,REDACTED,489.44,NET,REDACTED,REDACTED
Gloucester City Council,23UE,REDACTED,REDACTED,REDACTED,REDACTED,REDACTED,31/07/2015,REDACTED,425,NET,REDACTED,REDACTED
Gloucester City Council,23UE,REDACTED,REDACTED,REDACTED,REDACTED,REDACTED,31/07/2015,REDACTED,800,NET,REDACTED,REDACTED
Gloucester City Council,23UE,REDACTED,REDACTED,REDACTED,REDACTED,REDACTED,31/07/2015,REDACTED,1000,NET,REDACTED,REDACTED
Gloucester City Council,23UE,Kings Quarter,RY146,Contract Payments,20,Kings Quarter Bus Station,31/07/2015,405528,1500,CAP,Gloucestershire County Council,18650D
Gloucester City Council,23UE,REDACTED,REDACTED,REDACTED,REDACTED,REDACTED,31/07/2015,REDACTED,21,NET,REDACTED,REDACTED
Gloucester City Council,23UE,Superbreak,LT104,Materials For Sale,5080,ticket sales,31/07/2015,405485,149,NET,Superbreak Mini Holidays,00712D
Gloucester City Council,23UE,Superbreak,LT104,Sale Of Goods And Services,9230,ticket sales,31/07/2015,405485,-12.41,NET,Superbreak Mini Holidays,00712D
Gloucester City Council,23UE,Tic Theatre Ticket Sales,LT107,Materials For Sale,5080,Ticket Sales - A Midsummer Nights Dream,31/07/2015,405789,656,NET,Tyger Productions,14645K
Gloucester City Council,23UE,Tic Theatre Ticket Sales,LT107,Materials For Sale,5080,Ticket Sales - Twelth Night,31/07/2015,405790,172,NET,Pied Piper Appeal,02491B
Gloucester City Council,23UE,Tic Theatre Ticket Sales,LT107,Other Minor Income,9900,Ticket Sales - A Midsummer Nights Dream,31/07/2015,405789,-9,NET,Tyger Productions,14645K
Gloucester City Council,23UE,Tic Theatre Ticket Sales,LT107,Sale Of Goods And Services,9230,Ticket Sales - A Midsummer Nights Dream,31/07/2015,405789,-54.67,NET,Tyger Productions,14645K
Gloucester City Council,23UE,Tic Theatre Ticket Sales,LT107,Sale Of Goods And Services,9230,Ticket Sales - Twelth Night,31/07/2015,405790,-7.17,NET,Pied Piper Appeal,02491B
Gloucester City Council,23UE,Ugly Structures,GY010,Contract Payments,20,Kings Walk over cladding,31/07/2015,404883,1200,CAP,Rpa,01710Y
Gloucester City Council,23UE,Blackfriars Catering,LA220,Catering Provisions -Liquor,5111,Drinks,03/08/2015,405523,302.44,NET,Cellar Supplies Cheltenham Ltd,01563L
Gloucester City Council,23UE,Business Transformation & Tech,RT700,Telephones And Fax,5410,ACCT 51073802,03/08/2015,405082,33,NET,Virgin Media Payments Ltd,09376J
Gloucester City Council,23UE,Business Transformation & Tech,RT700,Telephones And Fax,5410,ACCT 510738303 LIFT LINE,03/08/2015,405081,16.99,NET,Virgin Media Payments Ltd,09376J
Gloucester City Council,23UE,Business Transformation & Tech,RT700,Telephones And Fax,5410,ACCT 511746301 JAMES,03/08/2015,405078,30,NET,Virgin Media Payments Ltd,09376J
Gloucester City Council,23UE,Business Transformation & Tech,RT700,Telephones And Fax,5410,ACCT 513231401,03/08/2015,405079,39,NET,Virgin Media Payments Ltd,09376J
Gloucester City Council,23UE,Guildhall Bar And Caf�,LA210,Catering Provisions -Liquor,5111,Drinks,03/08/2015,405525,449.01,NET,Cellar Supplies Cheltenham Ltd,01563L
Gloucester City Council,23UE,Guildhall Bar And Caf�,LA210,Catering Provisions -Liquor,5111,Gloucester Gold,03/08/2015,405524,114,NET,Gloucester Brewery,13373F
Gloucester City Council,23UE,REDACTED,REDACTED,REDACTED,REDACTED,REDACTED,03/08/2015,REDACTED,100,NET,REDACTED,REDACTED
Gloucester City Council,23UE,Vehicles,RS140,Basic Pay - Cleaners,2401,Gear Knob,03/08/2015,405519,41.07,NET,123 Car & Commercial,07651E
Gloucester City Council,23UE,REDACTED,REDACTED,REDACTED,REDACTED,REDACTED,,REDACTED,220,NET,REDACTED,REDACTED
Gloucester City Council,23UE,Gloucester Guildhall,LA100,Maintenance Of Equipment,5030,Locking Nut,,403842,11.64,NET,Cpc,52980M
Gloucester City Council,23UE,Guildhall Bar And Caf�,LA210,Catering Provisions -Food,5110,Food,,405360,116.09,NET,Woodward Foodservice,10714F
,,,,,,,,Sum:,4926743.78,,,
